{"text_format":"1","workbook":"xlsx","n_sheets":21,"sheets":["Intro & Checklist","1-Production Info","2-Electricity","3-Nat Gas & Heating Oil","4-Fuel","5-Hotels-Housing","6-Commercial Air Travel","7-Charter and Heli Flights","8-Practices & Procurement","Results","Sheet1","Lookups","ElectricityEFs","FuelEFs","CBECs","Cost","MPG","AirTravel","HotelFactors","Plywood tracking","Equivalents"],"not_rendered":{"charts":3,"images":9,"macros":1,"external_links":0,"defined_names":71,"comments":3,"pivot_tables":0},"unopened":[],"bounds":{"document_bytes":16777216,"sheet_cells":100000,"rows_first":2000,"rows_last":500,"rows_between":2000,"halvings":0,"cell_chars":16384,"cell_head_chars":4096},"cells_cut":0,"cells_raw":0,"read":"whole","date_system":"1900"}

{"sheet":"Intro & Checklist","index":0,"n_rows":16,"n_cols":5,"rows_kept":16,"cut":false,"hidden":false,"merged":[[2,1,2,3],[3,1,3,3],[1,1,1,3]]}
[null,null,null,"Version 3.0"]
[null,"Production Carbon Calculator General Info & Checklist"]
[null,"This calculator measures the carbon emissions generated by your production based on information you enter on emission sources such as utility electricity and heating, fuel, flight and hotel use.  Information for each emission source is collected on a separate worksheet tab.  Information is not required for every tab, and should only be entered for the emission sources associated with your production. \nThe table below provides a general description of the information collected and data collection status for each emission source data collection worksheet."]
[]
[null,"Click on a tab name to link to the sheet"]
[null,"Status","Calculator Tab","Description","Potential Sources of Data"]
[null,{"$f":"'1-Production Info'!J10","v":"Data Not Entered"},"1-Production Information","Calculator contact information & general production information including production name, headquarters location & schedule.\nProduction location information (e.g., production offices, warehouses, stages) used for utility electricity, natural gas & heating oil tracking"]
[null,{"$f":"'2-Electricity'!N10","v":"Data Not Entered"},"2-Electricity","Total electricity used for all locations entered in Production Info","utility heating bills\nlocation lease or real estate information\nprocurement (natural gas or heating oil cost)"]
[null,{"$f":"'3-Nat Gas & Heating Oil'!P8","v":"Data Not Entered"},"3-Natural Gas & Heating","Total natural gas and/or heating oil used for all locations entered in Production Info, if appropriate","electricity bills\nlocation lease or real estate information\nprocurement (electricity cost)"]
[null,{"$f":"'4-Fuel'!O9","v":"Data Not Entered"},"4-Fuel","Fuel used for equipment (e.g., generators) and vehicles "]
[null,{"$f":"'5-Hotels-Housing'!L6","v":"Data Not Entered"},"5-Hotels & Housing","Number of days and location of hotels, houses and condos rented during the production"]
[null,{"$f":"'6-Commercial Air Travel'!N8","v":"Data Not Entered"},"6-Commercial Air Travel","Passenger miles and routes (if applicable) traveled on commercial airlines"]
[null,{"$f":"'7-Charter and Heli Flights'!L6","v":"Data Not Entered"},"7-Charter & Helicopter Flights","Fuel, hours or distance traveled on charter jets and helicopters"]
[null,"N/A","8-Practices & Procurement","Waste management details including number and cost of bins, and amount of waste generated, recycled and sent to landfill\nPurchase information on products including wood, paint, adhesives, styrofoam, plastic water bottles, and/or other green purchases "]
[null,{"$f":"IF(Results!E10=\"Data Error\", \"Data Input Error\", IF(Results!E10>0, \"Data Entered Correctly\", \"Data Not Entered\"))","v":"Data Not Entered"},"Results","Summarizes and presents emissions results based on the information added in tabs 1 through 7 (tab 8 information is not used in emission calculations)"]
[null,null,null,"Updated September 2013"]

{"sheet":"1-Production Info","index":1,"n_rows":41,"n_cols":15,"rows_kept":41,"cut":false,"hidden":false,"merged":[[2,13,3,20],[8,14,8,20],[19,15,21,20],[22,15,24,20],[4,14,5,20],[6,14,7,20],[9,14,15,20],[7,1,7,6],[14,1,14,6],[3,5,3,6],[3,1,3,3],[11,8,11,10],[12,8,12,10],[14,8,14,10],[13,1,13,6],[11,5,12,6]]}
[]
[null,"Click for Checklist",null,"Required field",null,"Input not required"]
[null,null,null,null,null,null,null,null,null,null,null,null,null,"Instructions"]
[null,"Production Calculator Contact",null,null,null,"Production Coordinator Sign Off"]
[null,"Name","Phone Number","Date",null,"Name","Date",null,null,null,null,null,null,null,"1. Production Calculator Contact Information: Enter your name, information and the date"]
[]
[null,null,null,null,null,null,null,null,null,null,null,null,null,null,"2. Production Coordinator Sign Off: Enter the name of the production coordinator and date of calculator review and approval (if required)"]
[null,{"$f":"C9&\" Production Information\"","v":" Production Information"}]
[null,"Production Name:",null,"Start Date:",null,"End Date:",null,null,null,null,null,null,null,null,"3. Production Information:  Enter the name, start and end date, headquarter location and production length information"]
[null,"Headquarter Office Country:",null,"Number of Weeks for Prep:",null,"Number of Location Days:",null,null,"Status:",{"$f":"IF(ISERROR(SUM(K:K)),\"Data Input Error\",IF((L16>0),\"Data Entered Correctly\",\"Data Not Entered\"))","v":"Data Not Entered"},null,null,null,null,"4. Location Information-  Location information is used for the Electricity and Natural Gas and Heating Oil data entry and calculations. \n   -Enter the name of each production location into column B.  \n   -Select the location type (e.g., Office,  Stage(s)) from column C.  \n   -Select the location country from column D.  \n   -If the location is in the US, Canada or Australia, select the state or      \n    province from the dropdown list in column E.  \n   -Enter the address, city & postal code into columns F and G, \n    respectively, if desired."]
[null,"Headquarter State/Province:",null,"Number of Weeks for Shooting:",null,"Number of Set Days:",null,null,{"$f":" IF(OR(C10=\"USA\", C10=\"Canada\", C10= \"Australia\"), \"StatesList\", \"\")","v":""}]
[null,"Category of Film by Budget:",null,"Number of Weeks for Wrap:",null,"Enter values for the season",null,null,"Film only--HIDE ROW IF TV PRODUCTION"]
[null,"Season Number:",null,"Number of Weeks for Wrap:",null,null,null,null,"TV only- HIDE ROW IF FILM"]
[null,"For each production location, enter the name, selet the location type and country.  Additional address information is optional.    \nThese locations are used on the electricity and natural gas & heating oil tabs."]
[null,"Locations",null,null,null,null,null,null,"Location Calculations"]
[null,"Location Name","Location Type","Country","State/Province","Address (optional)","City & Postal Code (optional)",null,"StatesDropdown","Elec Region","eGRID Factor",{"$f":"SUM(K:K)","v":0}]
[null,null,null,null,null,null,null,null,{"$f":" IF(OR(D17=\"USA\", D17=\"Canada\", D17= \"Australia\"), \"StatesList\", \"\")","v":""},{"$f":"IF(ISBLANK(D17),\"\", IF(OR(D17=\"Canada\", D17=\"Australia\", D17=\"USA\"), CONCATENATE(D17,E17), D17))","v":""},{"$f":"IF(ISBLANK(B17), \"\", VLOOKUP(J17,ElecFactor,5,FALSE))","v":""}]
[null,null,null,null,null,null,null,null,{"$f":" IF(OR(D18=\"USA\", D18=\"Canada\", D18= \"Australia\"), \"StatesList\", \"\")","v":""},{"$f":"IF(ISBLANK(D18),\"\", IF(OR(D18=\"Canada\", D18=\"Australia\", D18=\"USA\"), CONCATENATE(D18,E18), D18))","v":""},{"$f":"IF(ISBLANK(B18), \"\", VLOOKUP(J18,ElecFactor,5,FALSE))","v":""}]
[null,null,null,null,null,null,null,null,"","",""]
[null,null,null,null,null,null,null,null,"","",""]
[null,null,null,null,null,null,null,null,"","",""]
[null,null,null,null,null,null,null,null,"","",""]
[null,null,null,null,null,null,null,null,"","",""]
[null,null,null,null,null,null,null,null,"","",""]
[null,null,null,null,null,null,null,null,"","",""]
[null,null,null,null,null,null,null,null,"","",""]
[null,null,null,null,null,null,null,null,"","",""]
[null,null,null,null,null,null,null,null,"","",""]
[null,null,null,null,null,null,null,null,"","",""]
[null,null,null,null,null,null,null,null,"","",""]
[null,null,null,null,null,null,null,null,"","",""]
[null,null,null,null,null,null,null,null,"","",""]
[null,null,null,null,null,null,null,null,"","",""]
[null,null,null,null,null,null,null,null,"","",""]
[null,null,null,null,null,null,null,null,"","",""]
[null,null,null,null,null,null,null,null,"","",""]
[null,null,null,null,null,null,null,null,"","",""]
[null,null,null,null,null,null,null,null,"","",""]
[null,null,null,null,null,null,null,null,"","",""]
[null,null,null,null,null,null,null,null,"","",""]
[null,null,null,null,null,null,null,null,"",{"$f":"IF(ISBLANK(D41),\"\", IF(OR(D41=\"Canada\", D41=\"Australia\", D41=\"USA\"), CONCATENATE(D41,E41), D41))","v":""},""]

{"sheet":"2-Electricity","index":2,"n_rows":45,"n_cols":25,"rows_kept":45,"cut":false,"hidden":false,"merged":[[11,8,11,9],[3,22,4,29],[8,23,8,29],[11,19,11,21],[1,18,1,20],[9,23,10,29],[13,24,14,29],[15,23,16,23],[5,23,7,29],[11,23,12,29],[15,24,17,29],[18,24,20,29],[22,22,25,30],[10,4,10,9],[3,1,3,9],[11,12,11,17],[5,1,6,1],[10,12,10,17],[5,2,6,2],[10,1,10,3],[5,4,5,9],[6,4,8,9],[11,3,12,3],[11,2,12,2],[11,10,12,10],[11,1,12,1],[11,5,11,7]]}
[]
[null,"Click for Checklist",null,null,null,null,null,"Required field",null,"Input not required"]
[]
[null,{"$f":"'1-Production Info'!C9& \" Purchased Electricity\"","v":" Purchased Electricity"},null,null,null,null,null,null,null,null,null,null,null,null,null,null,null,null,null,null,null,null,"Instructions"]
[]
[null,"Did You Purchase Renewable Energy or RECs?",null,null,"Comments",null,null,null,null,null,null,null,null,null,null,null,null,null,null,null,null,null,null,"1. General Electricity Questions:  Select Yes or No from the dropdowns to identify if you purchased renewable energy, RECs or used power drops on your production.  \nEnter comments about your production energy use (optional)"]
[]
[null,"Did you use power drops?"]
[null,"How much energy was powered from power drops?",null,null,null,null,null,null,null,null,null,null,null,null,null,null,null,null,null,null,null,null,null,"2. Location: Select a Location Name from the dropdown box.  \nLocations are entered in column B of the Production Info Tab"]
[null,null,null,null,null,null,null,null,null,null,null,null,"Status:",{"$f":"IF(ISERROR(U14),\"Data Input Error\",IF(U14<>SUM(U15:U17),\"Multiple Options Entered\",IF(U14>0,\"Data Entered Correctly\",\"Data Not Entered\")))","v":"Data Not Entered"},null,null,null,null,null,null,null,null,null,"3. From & End Date (optional):- Enter the start and end date of the location electricity information (e.g., the dates on the invoice) into column C and D, respectively"]
[null,"Locations entered in Production Info tab",null,null,"Enter  information only for ONE option for each location"]
[null,"Location Name ","From Date (optional)","End Date (optional)","PREFERRED OPTION","Second Option",null,null,"Third Option",null,"Option Selected",null,"Electricity Calculations",null,null,null,null,null,null,"Emission Summary",null,null,null,"4. Enter data for ONE Option for Electricity Information for each location entered:"]
[null,null,null,null,"Electricity Use (kWh)","Total Area \n(e.g., Total Square Feet)","Units","Days Used","Total Cost of Electricity (US$)","Cost Data Source",null,null,"ElectricityCode","ElecFactor (kgCO2/kWh)","Square Footage","CBECskWh","CostkWh","CO2 emissions",null,"Emissions","kg CO2","kWh"]
[null,null,null,null,null,null,null,null,null,null,{"$f":"IF(AND(E14>0,I14>0),\"Multiple Entered!\",IF(AND(F14>0,I14>0),\"Multiple Entered!\",IF(AND(E14>0,F14>0),\"Multiple Entered!\",IF(E14>0,\"Preferred Option\",IF(F14>0,\"2nd Option\",IF(I14>0,\"3rd Option\",\"\"))))))","v":""},null,{"$f":"IF(ISBLANK(B14), \"\", VLOOKUP(B14, LocationInfo, 9, FALSE))","v":""},{"$f":"IF(ISBLANK(B14), \"\", VLOOKUP(M14,ElecFactor,5,FALSE))","v":""},{"$f":"IF(ISBLANK(G14), \"\", VLOOKUP(G14,AreaConvert,2,FALSE)*F14)","v":""},{"$f":"IF(ISBLANK(H14),\"\",(VLOOKUP((VLOOKUP(VLOOKUP(B14,LocationInfo,2,FALSE),CBECSTypes,2,FALSE)),CBECSFactors,2,FALSE)*O14*H14/365))","v":""},{"$f":"IF(I14>0, I14/VLOOKUP(\"Electricity\", FuelCost,2,FALSE), \"\")","v":""},{"$f":"IF(ISBLANK(B14), \"\", IF(E14>0,E14,IF(F14>0,P14,IF(I14>0,Q14,\"\")))*N14)","v":""},null,"Total",{"$f":"SUM(R:R)","v":0},{"$f":"SUM(V15:V17)","v":0},null,null,"4.1 Preferred Option- Actual Electricity Use: Enter the actual electricity use (in kWh) for the selected location into column E"]
[null,null,null,null,null,null,null,null,null,null,{"$f":"IF(AND(E15>0,I15>0),\"Multiple Entered!\",IF(AND(F15>0,I15>0),\"Multiple Entered!\",IF(AND(E15>0,F15>0),\"Multiple Entered!\",IF(E15>0,\"Preferred Option\",IF(F15>0,\"2nd Option\",IF(I15>0,\"3rd Option\",\"\"))))))","v":""},null,{"$f":"IF(ISBLANK(B15), \"\", VLOOKUP(B15, LocationInfo, 9, FALSE))","v":""},"",{"$f":"IF(ISBLANK(G15), \"\", VLOOKUP(G15,AreaConvert,2,FALSE)*F15)","v":""},"","","",null,"Preferred Option (kWh)",{"$f":"SUMIF(E:E, \">0\",R:R )","v":0},{"$f":"SUM(E:E)","v":0}]
[null,null,null,null,null,null,null,null,null,null,"",null,"","","","","","",null,"2nd Option (square footage)",{"$f":"SUMIF(P:P, \">0\",R:R )","v":0},{"$f":"SUM(P:P)","v":0},null,null,"4.2 Second Option- Area: Enter the location area in column F, select the area units from column G, and enter the number of days the location was used in column H"]
[null,null,null,null,null,null,null,null,null,null,"",null,"","","","","","",null,"3rd Option (Cost)",{"$f":"SUMIF(Q:Q, \">0\",R:R )","v":0},{"$f":"SUM(Q:Q)","v":0}]
[null,null,null,null,null,null,null,null,null,null,"",null,"","","","","",""]
[null,null,null,null,null,null,null,null,null,null,"",null,"","","","","","",null,null,null,null,null,null,"4.3 Third Option- Cost: Enter the total cost of electricity for the location in column I, and select the cost data source (invoice or rent) from column J"]
[null,null,null,null,null,null,null,null,null,null,"",null,"","","","","",""]
[null,null,null,null,null,null,null,null,null,null,"",null,"","","","","",""]
[null,null,null,null,null,null,null,null,null,null,"",null,"","","","","",""]
[null,null,null,null,null,null,null,null,null,null,"",null,"","","","","","",null,null,null,null,"Copy Facility Information to Natural Gas Tab:\nClick the green button to transfer the location names and Options 2 information (area, units and days used) to the Natural Gas and Heating Oil tab.  Clicking the button multiple times will add the same values multiple times."]
[null,null,null,null,null,null,null,null,null,null,"",null,"","","","","",""]
[null,null,null,null,null,null,null,null,null,null,"",null,"","","","","",""]
[null,null,null,null,null,null,null,null,null,null,"",null,"","","","","",""]
[null,null,null,null,null,null,null,null,null,null,"",null,"","","","","",""]
[null,null,null,null,null,null,null,null,null,null,"",null,"","","","","",""]
[null,null,null,null,null,null,null,null,null,null,"",null,"","","","","",""]
[null,null,null,null,null,null,null,null,null,null,"",null,"","","","","",""]
[null,null,null,null,null,null,null,null,null,null,"",null,"","","","","",""]
[null,null,null,null,null,null,null,null,null,null,"",null,"","","","","",""]
[null,null,null,null,null,null,null,null,null,null,"",null,"","","","","",""]
[null,null,null,null,null,null,null,null,null,null,"",null,"","","","","",""]
[null,null,null,null,null,null,null,null,null,null,"",null,"","","","","",""]
[null,null,null,null,null,null,null,null,null,null,"",null,"","","","","",""]
[null,null,null,null,null,null,null,null,null,null,"",null,"","","","","",""]
[null,null,null,null,null,null,null,null,null,null,"",null,"","","","","",""]
[null,null,null,null,null,null,null,null,null,null,"",null,"","","","","",""]
[null,null,null,null,null,null,null,null,null,null,"",null,"","","","","",""]
[null,null,null,null,null,null,null,null,null,null,"",null,"","","","","",""]
[null,null,null,null,null,null,null,null,null,null,"",null,"","","","","",""]
[null,null,null,null,null,null,null,null,null,null,"",null,"","","","","",""]
[null,null,null,null,null,null,null,null,null,null,"",null,"","","","","",""]
[null,null,null,null,null,null,null,null,null,null,"",null,"","","","","",""]

{"sheet":"3-Nat Gas & Heating Oil","index":3,"n_rows":44,"n_cols":27,"rows_kept":44,"cut":false,"hidden":false,"merged":[[19,26,21,31],[22,26,24,31],[1,1,1,2],[3,1,3,11],[6,1,6,11],[8,1,8,4],[9,7,9,9],[8,5,8,11],[9,3,10,3],[9,1,10,1],[9,12,10,12],[9,10,9,11],[9,4,10,4],[9,2,10,2],[9,5,9,6],[1,19,1,21],[7,15,7,16],[9,14,9,20],[3,24,4,31],[7,24,9,24],[9,22,9,23],[7,25,9,31],[15,26,18,31],[16,24,17,25],[13,25,14,31],[5,25,6,31],[11,25,12,31],[10,25,10,31]]}
[]
[null,"Click for Checklist",null,null,null,null,null,null,null,"Required field",null,"Input not required"]
[]
[null,{"$f":"'1-Production Info'!C9& \" Natural Gas & Fuel Oil\"","v":" Natural Gas & Fuel Oil"},null,null,null,null,null,null,null,null,null,null,null,null,null,null,null,null,null,null,null,null,null,null,"Instructions"]
[]
[null,"Comments",null,null,null,null,null,null,null,null,null,null,null,null,null,null,null,null,null,null,null,null,null,null,null,"1. General Natural Gas & Heating Oil Questions:  Enter comments about natural gas and heating oil use for your production (optional)"]
[]
[null,null,null,null,null,null,null,null,null,null,null,null,null,null,"Status:",{"$f":"IF(ISERROR(X12),\"Data Input Error\",IF(X12<>SUM(X13:X15),\"Multiple Options Entered\",IF(X12>0,\"Data Entered Correctly\",\"Data Not Entered\")))","v":"Data Not Entered"},null,null,null,null,null,null,null,null,null,"2. Location-Column B: Select a Location Name from the dropdown box.  \nLocations are entered in Column B of the Production Info Tab"]
[null,"Locations entered in Production Info tab",null,null,null,"Enter  information only for ONE option for each location"]
[null,"Location Name","From Date (optional)","End Date (optional)","Fuel Type","PREFERRED OPTION",null,"Second Option",null,null,"Third Option",null,"Option Selected",null,"Natural Gas & Heating Oil Calculations",null,null,null,null,null,null,null,"Emission Summary"]
[null,null,null,null,null,"Fuel Use Amount","Fuel Use Units","Area","Units","Days Used","Total Cost of Fuel (US$)","Cost Data Source",null,null,"Standard Fuel Use Amount","Standard Fuel Use Units","EF (kg CO2/unit)","Square Footage","Fuel Use, CBECs-Est. (Std Units)","Fuel Use, Cost-Est. (Std Unit)","CO2 emissions (kg)",null,"Emissions","kg CO2",null,"3. From & End Date (optional)- Column C & D: enter the start and end date of the location electricity information (e.g., the dates on the invoice)"]
[null,null,null,null,null,null,null,null,null,null,null,null,{"$f":"IF(AND(F12>0,K12>0),\"Multiple Values!\",IF(AND(H12>0,K12>0),\"Multiple Values!\",IF(AND(F12>0,H12>0),\"Multiple Values!\",IF(F12>0,\"Preferred Option\",IF(H12>0,\"2nd Option\",IF(K12>0,\"3rd Option\",\"\"))))))","v":""},null,{"$f":"IF(ISBLANK(F12), \"\", (IF(E12=\"Natural gas\", VLOOKUP(G12,NGConvert,2,FALSE),IF(E12=\"Fuel Oil\", VLOOKUP(G12,FOConvert,2,FALSE),\"\"))*F12))","v":""},{"$f":"IF(E12=\"Natural Gas\", \"Cubic Feet\", IF(E12=\"Fuel Oil\", \"Gallons\",\"\"))","v":""},{"$f":"IF(ISBLANK(E12), \"\", VLOOKUP(E12,FuelFactors, 2, FALSE))","v":""},{"$f":"IF(H12>0, (VLOOKUP(I12,AreaConvert,2,FALSE)*H12), \"\")","v":""},{"$f":"IF(ISBLANK(J12),\"\",((VLOOKUP((VLOOKUP(VLOOKUP(B12,LocationInfo,2,FALSE),CBECSTypes,2,FALSE)),CBECSFactors,IF(E12=\"Natural Gas\",3,4),FALSE))*R12*J12/365))","v":""},{"$f":"IF(ISBLANK(K12), \"\", K12/VLOOKUP(E12,FuelCost,2,FALSE))","v":""},{"$f":"IF((F12+H12+K12)=0,\"\",IF(F12>0,O12,IF(J12>0,S12,IF(K12>0,T12,\"\")))*Q12)","v":""},null,"Total",{"$f":"SUM(U:U)","v":0},null,"4. Fuel Type- Select the fuel type (natural gas or heating oil) from the dropdown list in column D"]
[null,null,null,null,null,null,null,null,null,null,null,null,{"$f":"IF(AND(F13>0,K13>0),\"Multiple Values!\",IF(AND(H13>0,K13>0),\"Multiple Values!\",IF(AND(F13>0,H13>0),\"Multiple Values!\",IF(F13>0,\"Preferred Option\",IF(H13>0,\"2nd Option\",IF(K13>0,\"3rd Option\",\"\"))))))","v":""},null,{"$f":"IF(ISBLANK(F13), \"\", (IF(E13=\"Natural gas\", VLOOKUP(G13,NGConvert,2,FALSE),IF(E13=\"Fuel Oil\", VLOOKUP(G13,FOConvert,2,FALSE),\"\"))*F13))","v":""},{"$f":"IF(E13=\"Natural Gas\", \"Cubic Feet\", IF(E13=\"Fuel Oil\", \"Gallons\",\"\"))","v":""},{"$f":"IF(ISBLANK(E13), \"\", VLOOKUP(E13,FuelFactors, 2, FALSE))","v":""},{"$f":"IF(H13>0, (VLOOKUP(I13,AreaConvert,2,FALSE)*H13), \"\")","v":""},{"$f":"IF(ISBLANK(J13),\"\",((VLOOKUP((VLOOKUP(VLOOKUP(B13,LocationInfo,2,FALSE),CBECSTypes,2,FALSE)),CBECSFactors,IF(E13=\"Natural Gas\",3,4),FALSE))*R13*J13/365))","v":""},{"$f":"IF(ISBLANK(K13), \"\", K13/VLOOKUP(E13,FuelCost,2,FALSE))","v":""},{"$f":"IF((F13+H13+K13)=0,\"\",IF(F13>0,O13,IF(J13>0,S13,IF(K13>0,T13,\"\")))*Q13)","v":""},null,"Preferred Option (fuel use)",{"$f":"SUMIF(F:F, \">0\",U:U )","v":0}]
[null,null,null,null,null,null,null,null,null,null,null,null,"",null,"","","","","","","",null,"2nd Option (square footage)",{"$f":"SUMIF(S:S, \">0\",U:U )","v":0},null,"5. Enter data for ONE option for Natural Gas or Heating Oil Information for each location entered:"]
[null,null,null,null,null,null,null,null,null,null,null,null,"",null,"","","","","","","",null,"3rd Option (cost)",{"$f":"SUMIF(T:T, \">0\",U:U )","v":0}]
[null,null,null,null,null,null,null,null,null,null,null,null,"",null,"","","","","","","",null,null,null,null,null,"5.1 Preferred Option- Actual Fuel Use: Enter the actual natural gas or heating oil used for the selected location in column F and select the associated unit (e.g., cubic feet) for the fuel use amount in column G"]
[null,null,null,null,null,null,null,null,null,null,null,null,"",null,"","","","","","",""]
[null,null,null,null,null,null,null,null,null,null,null,null,"",null,"","","","","","",""]
[null,null,null,null,null,null,null,null,null,null,null,null,"",null,"","","","","","",""]
[null,null,null,null,null,null,null,null,null,null,null,null,"",null,"","","","","","","",null,null,null,null,null,"5.2 Second Option- Area: Enter the total area of the location in column H, select the area units from column I (e.g., square feet), and enter the number of days the location was used in column J"]
[null,null,null,null,null,null,null,null,null,null,null,null,"",null,"","","","","","",""]
[null,null,null,null,null,null,null,null,null,null,null,null,"",null,"","","","","","",""]
[null,null,null,null,null,null,null,null,null,null,null,null,"",null,"","","","","","","",null,null,null,null,null,"5.3 Third Option- Cost: Enter the total cost of natural gas or fuel oil for the location in Column K, and select the cost data source (invoice or rent) from column L"]
[null,null,null,null,null,null,null,null,null,null,null,null,"",null,"","","","","","",""]
[null,null,null,null,null,null,null,null,null,null,null,null,"",null,"","","","","","",""]
[null,null,null,null,null,null,null,null,null,null,null,null,"",null,"","","","","","",""]
[null,null,null,null,null,null,null,null,null,null,null,null,"",null,"","","","","","",""]
[null,null,null,null,null,null,null,null,null,null,null,null,"",null,"","","","","","",""]
[null,null,null,null,null,null,null,null,null,null,null,null,"",null,"","","","","","",""]
[null,null,null,null,null,null,null,null,null,null,null,null,"",null,"","","","","","",""]
[null,null,null,null,null,null,null,null,null,null,null,null,"",null,"","","","","","",""]
[null,null,null,null,null,null,null,null,null,null,null,null,"",null,"","","","","","",""]
[null,null,null,null,null,null,null,null,null,null,null,null,"",null,"","","","","","",""]
[null,null,null,null,null,null,null,null,null,null,null,null,"",null,"","","","","","",""]
[null,null,null,null,null,null,null,null,null,null,null,null,"",null,"","","","","","",""]
[null,null,null,null,null,null,null,null,null,null,null,null,"",null,"","","","","","",""]
[null,null,null,null,null,null,null,null,null,null,null,null,"",null,"","","","","","",""]
[null,null,null,null,null,null,null,null,null,null,null,null,"",null,"","","","","","",""]
[null,null,null,null,null,null,null,null,null,null,null,null,"",null,"","","","","","",""]
[null,null,null,null,null,null,null,null,null,null,null,null,"",null,"","","","","","",""]
[null,null,null,null,null,null,null,null,null,null,null,null,"",null,"","","","","","",""]
[null,null,null,null,null,null,null,null,null,null,null,null,"",null,"","","","","","",""]
[null,null,null,null,null,null,null,null,null,null,null,null,"",null,"","","","","","",""]
[null,null,null,null,null,null,null,null,null,null,null,null,"",null,"","","","","","",""]

{"sheet":"4-Fuel","index":4,"n_rows":38,"n_cols":26,"rows_kept":38,"cut":false,"hidden":false,"merged":[[23,24,24,24],[26,24,27,24],[26,25,27,29],[28,24,29,29],[5,23,6,29],[12,23,12,29],[18,24,22,29],[23,25,24,29],[10,22,11,22],[11,23,11,29],[14,24,17,29],[1,1,1,2],[3,22,4,29],[6,22,8,22],[7,23,7,29],[8,23,10,29],[1,19,1,21],[5,1,6,1],[3,1,3,10],[9,6,9,10],[10,20,10,21],[8,14,8,15],[10,4,11,4],[10,6,10,7],[10,5,11,5],[5,2,6,2],[10,13,10,18],[10,1,11,1],[10,11,11,11],[10,3,11,3],[9,1,9,5],[10,2,11,2],[10,8,10,9],[6,4,7,10],[5,4,5,10]]}
[]
[null,"Click for Checklist",null,null,null,null,null,null,"Required field",null,"Input not required"]
[]
[null,{"$f":"'1-Production Info'!C9& \" Fuel\"","v":" Fuel"},null,null,null,null,null,null,null,null,null,null,null,null,null,null,null,null,null,null,null,null,"Instructions"]
[]
[null,"How many hybrid vehicles did you use?",null,null,"Comments",null,null,null,null,null,null,null,null,null,null,null,null,null,null,null,null,null,null,"1. General Fuel Questions:  Select Yes or No from the dropdowns to identify if you used hybrid vehicles or enforced the no-idling policy on your set.  Enter comments about your production fuel use (optional)"]
[]
[null,"Did you enforce the \"No-Idling\" polIcy on your set?",null,null,null,null,null,null,null,null,null,null,null,null,null,null,null,null,null,null,null,null,null,"2. Equipment Type: Select an equipment type from the dropdown list in column B.  If the equipment type is unknown or you would like to enter information for multiple types of equipment, select “Other\""]
[null,null,null,null,null,null,null,null,null,null,null,null,null,"Status:",{"$f":"IF(ISERROR(V13),\"Data Input Error\",IF(V13<>SUM(V14:V16),\"Multiple Options Entered\",IF(V13>0,\"Data Entered Correctly\",\"Data Not Entered\")))","v":"Data Not Entered"},null,null,null,null,null,null,null,null,"3. From & End Date (optional): Enter the start and end date of the equipment fuel use information information into columns C and D, respectively"]
[null,"Select equipment and fuel type.  Dates and reason for use are optional.",null,null,null,null,"Enter all information for ONE option for each equipment and fuel type combination"]
[null,"Equipment Type","From Date (optional)","End Date (optional)","Reason for Use (Optional)","Fuel Type","PREFERRED OPTION",null,"Second Option",null,"Third Option","Option Selected",null,"Fuel Calculations",null,null,null,null,null,null,"Emission Summary"]
[null,null,null,null,null,null,"Fuel Use Amount","Fuel Use Units","Total Cost of Fuel (US$)","Average US$ per gallon","Miles Driven (Vehicles) ",null,null,"Equipment Type","Standard Fuel Use Amount (gal)","Fuel EF (kg CO2/gal)","Fuel Use - Cost Est. (Gallons)","Fuel Use - Miles Est. (Gallons)","CO2 emissions (kg)",null,"Emissions","kg CO2",null,"4. Reason for Use (optional): select the reason for the equipment use (e.g., personal, production) from the dropdown list in column E"]
[null,null,null,null,null,null,null,null,null,null,null,{"$f":"IF(AND(G13>0,K13>0),\"Multiple Entered!\",IF(AND(I13>0,K13>0),\"Multiple Entered!\",IF(AND(G13>0,I13>0),\"Multiple Entered!\",IF(G13>0,\"Preferred Option\",IF(I13>0,\"2nd Option\",IF(K13>0,\"3rd Option\",\"\"))))))","v":""},null,{"$f":"IF(ISNA(VLOOKUP(B13,EquipmentTypes,2,FALSE)),\"\",(VLOOKUP(B13,EquipmentTypes,2,FALSE)))","v":""},{"$f":"IF(ISBLANK(G13), \"\", (VLOOKUP(H13,FuelUnitsConvert, 2,FALSE)*G13))","v":""},{"$f":"IF(ISBLANK(F13), \"\", VLOOKUP(F13,FuelFactors,2,FALSE))","v":""},{"$f":"IF(ISBLANK(I13), \"\", I13/(IF(ISBLANK(J13),VLOOKUP(F13,FuelCost,2,FALSE),J13)))","v":""},{"$f":"IF(K13>0, K13/VLOOKUP(B13, MPG, 2, FALSE), \"\")","v":""},{"$f":"IF(L13<>\"\", IF(G13>0,O13,IF(I13>0,Q13, IF(K13>0,R13,\"\")))*P13, \"\")","v":""},null,"Total",{"$f":"SUM(S:S)","v":0},null,"5. Fuel Type: Select the type of fuel used for the equipment from the dropdown list in column F"]
[null,null,null,null,null,null,null,null,null,null,null,{"$f":"IF(AND(G14>0,K14>0),\"Multiple Entered!\",IF(AND(I14>0,K14>0),\"Multiple Entered!\",IF(AND(G14>0,I14>0),\"Multiple Entered!\",IF(G14>0,\"Preferred Option\",IF(I14>0,\"2nd Option\",IF(K14>0,\"3rd Option\",\"\"))))))","v":""},null,"","","","","",{"$f":"IF(L14<>\"\", IF(G14>0,O14,IF(I14>0,Q14, IF(K14>0,R14,\"\")))*P14, \"\")","v":""},null,"Preferred Option (fuel use)",{"$f":"SUMIF(G:G, \">0\",S:S )","v":0},null,"6. Enter data for ONE option for Fuel Use:"]
[null,null,null,null,null,null,null,null,null,null,null,"",null,"","","","","","",null,"2nd Option (square footage)",{"$f":"SUMIF(I:I, \">0\",S:S )","v":0},null,null,"6.1 Preferred Option- Actual Fuel Use:  Enter the actual fuel use in column G and select the associated units (e.g., gallons) from the dropdown list in column H"]
[null,null,null,null,null,null,null,null,null,null,null,"",null,"","","","","","",null,"3rd Option (cost)",{"$f":"SUMIF(K:K, \">0\",S:S )","v":0}]
[null,null,null,null,null,null,null,null,null,null,null,"",null,"","","","","",""]
[null,null,null,null,null,null,null,null,null,null,null,"",null,"","","","","",""]
[null,null,null,null,null,null,null,null,null,null,null,"",null,"","","","","","",null,null,null,null,null,"6.2 Second Option- Cost: Enter the total cost of the equipment fuel in US dollars in column I.  Enter the average cost per gallon of the fuel in column J.  If the average cost is unknown, the following links have regional cost information:  "]
[null,null,null,null,null,null,null,null,null,null,null,"",null,"","","","","",""]
[null,null,null,null,null,null,null,null,null,null,null,"",null,"","","","","",""]
[null,null,null,null,null,null,null,null,null,null,null,"",null,"","","","","",""]
[null,null,null,null,null,null,null,null,null,null,null,"",null,"","","","","",""]
[null,null,null,null,null,null,null,null,null,null,null,"",null,"","","","","","",null,null,null,null,null,"Gasoline:","http://www.eia.doe.gov/oil_gas/petroleum/data_publications/wrgp/mogas_home_page.html "]
[null,null,null,null,null,null,null,null,null,null,null,"",null,"","","","","",""]
[null,null,null,null,null,null,null,null,null,null,null,"",null,"","","","","","",null,null,null,null,null,"Diesel:","http://tonto.eia.doe.gov/oog/info/wohdp/diesel.asp "]
[null,null,null,null,null,null,null,null,null,null,null,"",null,"","","","","","",null,null,null,null,null,"Alternative Fuels:","http://www.altfuelprices.com/"]
[null,null,null,null,null,null,null,null,null,null,null,"",null,"","","","","",""]
[null,null,null,null,null,null,null,null,null,null,null,"",null,"","","","","","",null,null,null,null,null,"6.3 Third Option- Distance: This option applies only to vehicles.  Enter the total miles driven for the selected vehicle type"]
[null,null,null,null,null,null,null,null,null,null,null,"",null,"","","","","",""]
[null,null,null,null,null,null,null,null,null,null,null,"",null,"","","","","",""]
[null,null,null,null,null,null,null,null,null,null,null,"",null,"","","","","",""]
[null,null,null,null,null,null,null,null,null,null,null,"",null,"","","","","",""]
[null,null,null,null,null,null,null,null,null,null,null,"",null,"","","","","",""]
[null,null,null,null,null,null,null,null,null,null,null,"",null,"","","","","",""]
[null,null,null,null,null,null,null,null,null,null,null,"",null,"","","","","",""]
[null,null,null,null,null,null,null,null,null,null,null,"",null,"","","","","",""]
[null,null,null,null,null,null,null,null,null,null,null,"",null,"","","","","",""]

{"sheet":"5-Hotels-Housing","index":5,"n_rows":35,"n_cols":22,"rows_kept":35,"cut":false,"hidden":false,"merged":[[3,19,4,26],[6,19,8,19],[11,19,12,19],[10,20,10,26],[11,20,14,26],[3,1,3,7],[9,1,9,4],[8,10,8,15],[8,17,8,18],[5,11,5,12],[5,1,6,1],[5,2,6,2],[18,20,18,26],[22,21,23,26],[19,21,20,26],[9,5,9,6],[6,4,7,7],[5,20,8,26],[15,20,16,26],[5,4,5,7]]}
[]
[null,"Click for Checklist",null,null,"Required field",null,"Input not required"]
[]
[null,{"$f":"'1-Production Info'!C9& \" Hotels & Housing\"","v":" Hotels & Housing"},null,null,null,null,null,null,null,null,null,null,null,null,null,null,null,null,null,"Instructions"]
[]
[null,"Did you choose a hotel because it is considered \"green\"?",null,null,"Comments",null,null,null,null,null,"Status:",{"$f":"IF(ISERROR(S12),\"Data Input Error\",IF(S12>0,\"Data Entered Correctly\",\"Data Not Entered\"))","v":"Data Not Entered"},null,null,null,null,null,null,null,null,"1. General Hotel & Housing Questions:  Select Yes or No from the dropdown to identify if you choose a hotel because it is considered “green.” \nEnter comments about your production hotel & housing use (optional)"]
[]
[]
[null,"Select the room type and location (city is optional).  Enter the number of rooms (for hotels only) and number of nights stayed at the hotel or house. (Option 1)",null,null,null,null,null,null,null,null,"Hotels & Housing Calculations",null,null,null,null,null,null,"Emission Summary"]
[null,"Or enter the total number of nights (Option 2)",null,null,null,"Option 1",null,"Option 2"]
[null,"Room Type","City (Optional)","Country","State/Province","Number of Rooms (for hotels only)","Number of Nights","Total Number of  Nights",null,null,"StatesList","EF (kg CO2/kWh)","kWh/year","Room-Nights (years) \n(Option 1)","Total Nights (years)\n(Option 2)","CO2 emissions (kg)",null,"Emissions","kg CO2",null,"2. Room Type: Select a room or house type from the drop down list in column B"]
[null,null,null,null,null,null,null,null,null,null,{"$f":" IF(OR(D12=\"USA\", D12=\"Canada\", D12= \"Australia\"), \"StatesList\", \"\")","v":""},{"$f":"IF(ISBLANK(D12),\"\",IF(OR(D12=\"USA\",D12=\"Australia\",D12=\"Canada\"),VLOOKUP(CONCATENATE(D12,E12),ElecFactor,5,FALSE),VLOOKUP(D12,ElecFactor,5,FALSE)))","v":""},{"$f":"IF(ISTEXT(B12),VLOOKUP(B12, HotelFactors, 4, FALSE),\"\")","v":""},{"$f":"IF(ISBLANK(B12),\"\",IF(H12>0,1,IF(OR(B12=\"Apartment/Condo\", B12 = \"Average House\", B12= \"Large House\"),G12,G12*F12)/365))","v":""},{"$f":"IF(ISBLANK(B12),\"\",IF(F12+G12>0,1,H12/365))","v":""},{"$f":"IF(AND(ISBLANK(B12), ISBLANK(G12)), \"\", L12*M12*N12*O12)","v":""},null,"Total",{"$f":"SUM(P:P)","v":0},null,"3. Hotel/Housing Location: \n    -Enter the hotel or housing city into column C (optional)\n    -Select the country from the dropdown list in column D \n    -Select the state or province from column E (if required)"]
[null,null,null,null,null,null,null,null,null,null,{"$f":" IF(OR(D13=\"USA\", D13=\"Canada\", D13= \"Australia\"), \"StatesList\", \"\")","v":""},"","",{"$f":"IF(ISBLANK(B13),\"\",IF(H13>0,1,IF(OR(B13=\"Apartment/Condo\", B13 = \"Average House\", B13= \"Large House\"),G13,G13*F13)/365))","v":""},{"$f":"IF(ISBLANK(B13),\"\",IF(F13+G13>0,1,H13/365))","v":""},{"$f":"IF(AND(ISBLANK(B13), ISBLANK(G13)), \"\", L13*M13*N13*O13)","v":""}]
[null,null,null,null,null,null,null,null,null,null,"","","","","",""]
[null,null,null,null,null,null,null,null,null,null,"","","","","",""]
[null,null,null,null,null,null,null,null,null,null,"","","","","","",null,null,null,null,"4. Number of Rooms: (for hotels only) Enter the number of rooms rented at the hotel in column F "]
[null,null,null,null,null,null,null,null,null,null,"","","","","",""]
[null,null,null,null,null,null,null,null,null,null,"","","","","",""]
[null,null,null,null,null,null,null,null,null,null,"","","","","","",null,null,null,null,"4. Enter data for ONE Option for Hotels/Houses:"]
[null,null,null,null,null,null,null,null,null,null,"","","","","","",null,null,null,null,null,"4.1 Option 1- Nights and Rooms:  Enter the number of rooms rented at the hotel in column F.   Enter the number of rooms in column G."]
[null,null,null,null,null,null,null,null,null,null,"","","","","",""]
[null,null,null,null,null,null,null,null,null,null,"","","","","",""]
[null,null,null,null,null,null,null,null,null,null,"","","","","","",null,null,null,null,null,"4.2 Second Option- Total Nights: Enter the total number of nights into Column H"]
[null,null,null,null,null,null,null,null,null,null,"","","","","",""]
[null,null,null,null,null,null,null,null,null,null,"","","","","",""]
[null,null,null,null,null,null,null,null,null,null,"","","","","","",null,null,null,null,null,"Housing Type Key"]
[null,null,null,null,null,null,null,null,null,null,"","","","","",""]
[null,null,null,null,null,null,null,null,null,null,"","","","","",""]
[null,null,null,null,null,null,null,null,null,null,"","","","","",""]
[null,null,null,null,null,null,null,null,null,null,"","","","","",""]
[null,null,null,null,null,null,null,null,null,null,"","","","","",""]
[null,null,null,null,null,null,null,null,null,null,"","","","","",""]
[null,null,null,null,null,null,null,null,null,null,"","","","","",""]
[null,null,null,null,null,null,null,null,null,null,"","","","","",""]
[null,null,null,null,null,null,null,null,null,null,"","","","","",""]

{"sheet":"6-Commercial Air Travel","index":6,"n_rows":75,"n_cols":22,"rows_kept":75,"cut":false,"hidden":false,"merged":[[1,1,1,2],[9,1,9,5],[9,8,9,9],[21,21,27,26],[8,21,8,26],[9,21,16,26],[17,21,19,26],[6,19,7,19],[9,19,10,19],[3,19,4,26],[5,20,6,26],[9,10,10,10],[9,6,9,7],[3,1,3,7],[5,1,5,7],[6,1,6,7],[8,1,8,7],[7,20,7,26],[9,12,9,15],[7,1,7,3],[9,17,9,18],[7,13,7,14]]}
[]
[null,"Click for Checklist",null,null,null,"Required field",null,"Input not required"]
[]
[null,{"$f":"'1-Production Info'!C9& \" Commercial Air Travel\"","v":" Commercial Air Travel"},null,null,null,null,null,null,null,null,null,null,null,null,null,null,null,null,null,"Instructions"]
[]
[null,"Comments",null,null,null,null,null,null,null,null,null,null,null,null,null,null,null,null,null,null,"1. General Commercial Air Travel Information:  Enter comments about commercial air travel for your production (optional) "]
[]
[null,null,null,null,null,null,null,null,null,null,null,null,"Status:",{"$f":"IF(ISERROR(S12),\"Data Input Error\",IF(S12<>SUM(S13:S14),\"Multiple Options Entered\",IF(S12>0,\"Data Entered Correctly\",\"Data Not Entered\")))","v":"Data Not Entered"},null,null,null,null,null,null,"2. Enter data for ONE Option for Commercial Air Travel Information:"]
[null,"Enter the information for ONE option for air travel.  Departure and arrival locations are optional.",null,null,null,null,null,null,null,null,null,null,null,null,null,null,null,null,null,null,null,"2.1 Preferred Option- Flights by Route:"]
[null,"PREFERRED OPTION",null,null,null,null,"Second Option",null,"Third Option",null,"Option Selected",null,"Commercial Flight Calculations",null,null,null,null,"Emission Summary",null,null,null,"If known, enter the departure and arrival airport information into columns B and C, respectively\nEnter the total number of individual one-way trips for all people flown on this leg in column D.  A round trip is equal to two trips. For example, if 5 cast members travel round trip from LAX to JFK 3 times, the number of trips equals 30 (5 x 2 x 3).  Multiple trips on the same route can be entered on separate rows, as long as the number of trips is correct.  \nEnter the one way flight distance of the route in column E and select the associated units from column F (e.g., LAX to JFK = 2500 land miles)"]
[null,"Departure Airport Code/City \n(if known)","Arrival Airport Code/City \n(if known)","# of Trips on this Route (Total the number of individual one-way trips for all people. Round-trip = 2 trips)","One Way Flight Distance","Flight Distance Units","Total Commerical Flight Distance","Flight Distance Units",null,null,null,null,"Total Distance (miles)","Trip Classification","EF (kgCO2/passenger mile)","CO2 emissions (kg)",null,"Emissions","kg CO2"]
[null,null,null,null,null,null,null,null,null,null,{"$f":"IF(AND(D12>0,I12>0),\"Multiple Values!\",IF(AND(G12>0,I12>0),\"Multiple Values!\",IF(AND(D12>0,G12>0),\"Multiple Values!\",IF(D12>0,\"Preferred Option\",IF(G12>0,\"2nd Option\",IF(I12>0,\"Option 3\",\"\"))))))","v":""},null,{"$f":"IF(E12>0,(VLOOKUP(F12,FlightDistanceConversion,2,FALSE)*E12*D12),IF(G12>0,(VLOOKUP(H12,FlightDistanceConversion,2,FALSE)*G12),\"\"))","v":""},{"$f":"IF(K12=\"Multiple Values!\", \"Mult Values\",IF(E12>0,IF(E12<ShortMax,\"Short\",IF(E12<MedMax,\"Medium\",\"Long\")),IF(G12>0,\"Average\",\"\")))","v":""},{"$f":"IF(K12<>\"\",VLOOKUP(N12, CommAirFactors, 2, FALSE),\"\")","v":""},{"$f":"IF(K12<>\"\",M12*O12,\"\")","v":""},null,"Total",{"$f":"SUM(P:P)","v":0}]
[null,null,null,null,null,null,null,null,null,null,"",null,{"$f":"IF(E13>0,(VLOOKUP(F13,FlightDistanceConversion,2,FALSE)*E13*D13),IF(G13>0,(VLOOKUP(H13,DistanceConvert,2,FALSE)*G13),\"\"))","v":""},"","",{"$f":"IF(K13<>\"\",M13*O13,\"\")","v":""},null,"Preferred Option (flight type)",{"$f":"SUMIF(E:E, \">0\",P:P )","v":0}]
[null,null,null,null,null,null,null,null,null,null,"",null,"","","","",null,"2nd Option (total miles)",{"$f":"SUMIF(G:G, \">0\",P:P )","v":0}]
[null,null,null,null,null,null,null,null,null,null,"",null,"","","",""]
[null,null,null,null,null,null,null,null,null,null,"",null,"","","",""]
[null,null,null,null,null,null,null,null,null,null,"",null,"","","",""]
[null,null,null,null,null,null,null,null,null,null,"",null,"","","","",null,null,null,null,null,"Multiple trips on the same route can be entered on separate rows, as long as the number of trips is correct.  \nWebflier's flight distance calculator can be found at: "]
[null,null,null,null,null,null,null,null,null,null,"",null,"","","",""]
[null,null,null,null,null,null,null,null,null,null,"",null,"","","",""]
[null,null,null,null,null,null,null,null,null,null,"",null,"","","","",null,null,null,null,null,"http://www.webflyer.com/travel/mileage_calculator/ "]
[null,null,null,null,null,null,null,null,null,null,"",null,"","","","",null,null,null,null,null,"2.2 Second Option- Total Flight Distance: \nEnter the total commercial flight distance (in passenger miles) for the production into column G and the associated units into column H.  \n(If more than one person is on the same flight, the total passenger miles would be the distance traveled by passenger one plus the distance traveled by passenger two)"]
[null,null,null,null,null,null,null,null,null,null,"",null,"","","",""]
[null,null,null,null,null,null,null,null,null,null,"",null,"","","",""]
[null,null,null,null,null,null,null,null,null,null,"",null,"","","",""]
[null,null,null,null,null,null,null,null,null,null,"",null,"","","",""]
[null,null,null,null,null,null,null,null,null,null,"",null,"","","",""]
[null,null,null,null,null,null,null,null,null,null,"",null,"","","",""]
[null,null,null,null,null,null,null,null,null,null,"",null,"","","",""]
[null,null,null,null,null,null,null,null,null,null,"",null,"","","",""]
[null,null,null,null,null,null,null,null,null,null,"",null,"","","",""]
[null,null,null,null,null,null,null,null,null,null,"",null,"","","",""]
[null,null,null,null,null,null,null,null,null,null,"",null,"","","",""]
[null,null,null,null,null,null,null,null,null,null,"",null,"","","",""]
[null,null,null,null,null,null,null,null,null,null,"",null,"","","",""]
[null,null,null,null,null,null,null,null,null,null,"",null,"","","",""]
[null,null,null,null,null,null,null,null,null,null,"",null,"","","",""]
[null,null,null,null,null,null,null,null,null,null,"",null,"","","",""]
[null,null,null,null,null,null,null,null,null,null,"",null,"","","",""]
[null,null,null,null,null,null,null,null,null,null,"",null,"","","",""]
[null,null,null,null,null,null,null,null,null,null,"",null,"","","",""]
[null,null,null,null,null,null,null,null,null,null,"",null,"","","",""]
[null,null,null,null,null,null,null,null,null,null,"",null,"","","",""]
[null,null,null,null,null,null,null,null,null,null,{"$f":"IF(AND(D44>0,I44>0),\"Multiple Values!\",IF(AND(G44>0,I44>0),\"Multiple Values!\",IF(AND(D44>0,G44>0),\"Multiple Values!\",IF(D44>0,\"Preferred Option\",IF(G44>0,\"2nd Option\",IF(I44>0,\"Option 3\",\"\"))))))","v":""},null,{"$f":"IF(E44>0,(VLOOKUP(F44,FlightDistanceConversion,2,FALSE)*E44*D44),IF(G44>0,(VLOOKUP(H44,DistanceConvert,2,FALSE)*G44),\"\"))","v":""},{"$f":"IF(K44=\"Multiple Values!\", \"Mult Values\",IF(E44>0,IF(E44<ShortMax,\"Short\",IF(E44<MedMax,\"Medium\",\"Long\")),IF(G44>0,\"Average\",\"\")))","v":""},{"$f":"IF(K44<>\"\",VLOOKUP(N44, CommAirFactors, 2, FALSE),\"\")","v":""},""]
[null,null,null,null,null,null,null,null,null,null,"",null,"","","",""]
[null,null,null,null,null,null,null,null,null,null,"",null,"","","",""]
[null,null,null,null,null,null,null,null,null,null,"",null,"","","",""]
[null,null,null,null,null,null,null,null,null,null,"",null,"","","",""]
[null,null,null,null,null,null,null,null,null,null,"",null,"","","",""]
[null,null,null,null,null,null,null,null,null,null,"",null,"","","",""]
[null,null,null,null,null,null,null,null,null,null,"",null,"","","",""]
[null,null,null,null,null,null,null,null,null,null,"",null,"","","",""]
[null,null,null,null,null,null,null,null,null,null,"",null,"","","",""]
[null,null,null,null,null,null,null,null,null,null,"",null,"","","",""]
[null,null,null,null,null,null,null,null,null,null,"",null,"","","",""]
[null,null,null,null,null,null,null,null,null,null,"",null,"","","",""]
[null,null,null,null,null,null,null,null,null,null,"",null,"","","",""]
[null,null,null,null,null,null,null,null,null,null,"",null,"","","",""]
[null,null,null,null,null,null,null,null,null,null,"",null,"","","",""]
[null,null,null,null,null,null,null,null,null,null,"",null,"","","",""]
[null,null,null,null,null,null,null,null,null,null,"",null,"","","",""]
[null,null,null,null,null,null,null,null,null,null,"",null,"","","",""]
[null,null,null,null,null,null,null,null,null,null,"",null,"","","",""]
[null,null,null,null,null,null,null,null,null,null,"",null,"","","",""]
[null,null,null,null,null,null,null,null,null,null,"",null,"","","",""]
[null,null,null,null,null,null,null,null,null,null,"",null,"","","",""]
[null,null,null,null,null,null,null,null,null,null,"",null,"","","",""]
[null,null,null,null,null,null,null,null,null,null,"",null,"","","",""]
[null,null,null,null,null,null,null,null,null,null,"",null,"","","",""]
[null,null,null,null,null,null,null,null,null,null,"",null,"","","",""]
[null,null,null,null,null,null,null,null,null,null,"",null,"","","",""]
[null,null,null,null,null,null,null,null,null,null,"",null,"","","",""]
[null,null,null,null,null,null,null,null,null,null,"",null,"","","",""]
[null,null,null,null,null,null,null,null,null,null,"",null,"","","",""]
[null,null,null,null,null,null,null,null,null,null,"",null,"","","",""]

{"sheet":"7-Charter and Heli Flights","index":7,"n_rows":34,"n_cols":22,"rows_kept":34,"cut":false,"hidden":false,"merged":[[3,19,4,26],[5,20,6,26],[6,19,8,19],[10,19,11,19],[7,20,8,26],[9,20,9,26],[10,21,10,26],[11,21,12,26],[13,21,16,26],[9,10,9,15],[9,17,9,18],[5,11,5,12],[9,8,10,8],[1,1,1,2],[3,1,3,7],[9,2,10,2],[9,1,10,1],[8,3,8,7],[9,6,9,7],[9,3,9,4],[8,1,8,2],[5,1,5,7],[6,1,6,7]]}
[]
[null,"Click for Checklist",null,null,null,"Required field",null,"Input not required"]
[]
[null,{"$f":"'1-Production Info'!C9& \" Charter & Helicopter Flights\"","v":" Charter & Helicopter Flights"},null,null,null,null,null,null,null,null,null,null,null,null,null,null,null,null,null,"Instructions"]
[]
[null,"Comments",null,null,null,null,null,null,null,null,"Status:",{"$f":"IF(ISERROR(S12),\"Data Input Error\",IF(S12<>SUM(S13:S15),\"Multiple Options Entered\",IF(S12>0,\"Data Entered Correctly\",\"Data Not Entered\")))","v":"Data Not Entered"},null,null,null,null,null,null,null,null,"1. General Charter and Helicopter Flight Information:  Enter comments about charter and helicopter air travel for your production (optional) "]
[]
[null,null,null,null,null,null,null,null,null,null,null,null,null,null,null,null,null,null,null,null,"2. Plane Information: Select the plane type from the dropdown list in column B (required) and enter the plane model in column C (optional)"]
[null,"Select the plane type.  Model type is optional.",null,"Enter all information for ONE option"]
[null,"Plane Type","Model \n(if known)","PREFERRED OPTION",null,"Second Option","Third Option",null,"Option Selected",null,"Charter Flight Calculations ",null,null,null,null,null,null,"Emission Summary",null,null,"3. Enter data for ONE Option for Chartered and Helicopter Flights:"]
[null,null,null,"Fuel Use Amount","Fuel Use Units","Total Hours Flown","Total Distance Flown","Flight Units",null,null,"Standard Fuel Use (gal)","Fuel EF (kg/gallon)","Fuel Use - Hours Est. (gal)","Standard Distance (miles)","Distance Fuel Use (gal)","CO2 emissions (kg)",null,"Emissions","kg CO2",null,null,"3.1 Preferred Option- Actual Fuel Use: Enter the actual fuel used for the plane type selected in column D and select the associated units (e.g., gallons) from the dropdown list in column E"]
[null,null,null,null,null,null,null,null,{"$f":"IF(AND(D12>0,F12>0),\"Multiple Values!\",IF(AND(G12>0,F12>0),\"Multiple Values!\",IF(AND(D12>0,G12>0),\"Multiple Values!\",IF(D12>0,\"Preferred Option\",IF(G12>0,\"Third Option\",IF(F12>0,\"Second Option\",\"\"))))))","v":""},null,{"$f":"IF(ISBLANK(D12), \"\", VLOOKUP(E12, FuelUnitsConvert, 2, FALSE)*D12)","v":""},{"$f":"IF(ISBLANK(B12), \"\", VLOOKUP(VLOOKUP(B12,AirFactors,2,FALSE),FuelFactors,2,FALSE))","v":""},{"$f":"IF(F12>0, VLOOKUP(B12, AirFactors, 3, FALSE)*F12, \"\")","v":""},{"$f":"IF(G12>0, VLOOKUP(H12, FlightDistanceConversion, 2, FALSE)*G12, \"\")","v":""},{"$f":"IF(G12>0, N12/VLOOKUP(B12, AirFactors, 4, FALSE), \"\")","v":""},{"$f":"IF((D12+F12+G12)=0,\"\",IF(D12>0,K12,IF(F12>0,M12,IF(G12>0,O12,\"\")))*L12)","v":""},null,"Total",{"$f":"SUM(P:P)","v":0},null,null,"3.2 Second Option- Hours Flown: Enter the total hours flown by the selected plane type in column F"]
[null,null,null,null,null,null,null,null,{"$f":"IF(AND(D13>0,F13>0),\"Multiple Values!\",IF(AND(G13>0,F13>0),\"Multiple Values!\",IF(AND(D13>0,G13>0),\"Multiple Values!\",IF(D13>0,\"Preferred Option\",IF(G13>0,\"Third Option\",IF(F13>0,\"Second Option\",\"\"))))))","v":""},null,{"$f":"IF(ISBLANK(D13), \"\", VLOOKUP(E13, FuelUnitsConvert, 2, FALSE)*D13)","v":""},{"$f":"IF(ISBLANK(B13), \"\", VLOOKUP(VLOOKUP(B13,AirFactors,2,FALSE),FuelFactors,2,FALSE))","v":""},{"$f":"IF(F13>0, VLOOKUP(B13, AirFactors, 3, FALSE)*F13, \"\")","v":""},"",{"$f":"IF(G13>0, N13/VLOOKUP(B13, AirFactors, 4, FALSE), \"\")","v":""},{"$f":"IF((D13+F13+G13)=0,\"\",IF(D13>0,K13,IF(F13>0,M13,IF(G13>0,O13,\"\")))*L13)","v":""},null,"Preferred Option (fuel use)",{"$f":"SUMIF(D:D, \">0\",P:P )","v":0}]
[null,null,null,null,null,null,null,null,"",null,"","","","","","",null,"2nd Option (hours flown)",{"$f":"SUMIF(M:M, \">0\",P:P )","v":0},null,null,"3.3 Third Option- Distance: Enter the total distance flown by the selected plane type in column G and select the associated units (e.g. miles) from the dropdown list in column H"]
[null,null,null,null,null,null,null,null,"",null,"","","","","","",null,"3rd Option (disntance flown)",{"$f":"SUMIF(O:O, \">0\",P:P )","v":0}]
[null,null,null,null,null,null,null,null,"",null,"","","","","",""]
[null,null,null,null,null,null,null,null,"",null,"","","","","",""]
[null,null,null,null,null,null,null,null,"",null,"","","","","",""]
[null,null,null,null,null,null,null,null,"",null,"","","","","",""]
[null,null,null,null,null,null,null,null,"",null,"","","","","","",null,null,null,null,"Plane Type Key"]
[null,null,null,null,null,null,null,null,"",null,"","","","","",""]
[null,null,null,null,null,null,null,null,"",null,"","","","","",""]
[null,null,null,null,null,null,null,null,"",null,"","","","","",""]
[null,null,null,null,null,null,null,null,"",null,"","","","","",""]
[null,null,null,null,null,null,null,null,"",null,"","","","","",""]
[null,null,null,null,null,null,null,null,"",null,"","","","","",""]
[null,null,null,null,null,null,null,null,"",null,"","","","","",""]
[null,null,null,null,null,null,null,null,"",null,"","","","","",""]
[null,null,null,null,null,null,null,null,"",null,"","","","","",""]
[null,null,null,null,null,null,null,null,"",null,"","","","","",""]
[null,null,null,null,null,null,null,null,"",null,"","","","","",""]
[null,null,null,null,null,null,null,null,"",null,"","","","","",""]
[null,null,null,null,null,null,null,null,"",null,"","","","","",""]
[null,null,null,null,null,null,null,null,"",null,"","","","","",""]

{"sheet":"8-Practices & Procurement","index":8,"n_rows":19,"n_cols":11,"rows_kept":19,"cut":false,"hidden":false,"merged":[[1,1,1,2],[6,5,9,6],[11,5,11,6],[5,5,5,6],[3,1,3,6],[16,1,16,6],[5,1,5,3],[11,1,12,1],[11,2,12,2],[11,3,12,3],[12,5,14,6],[18,10,18,15],[10,8,11,8],[5,9,10,15],[14,10,15,15],[1,15,1,16],[3,8,4,15],[6,8,8,8],[11,9,12,15],[16,10,17,15]]}
[]
[null,"Click for Checklist"]
[]
[null,{"$f":"'1-Production Info'!C9& \" Practices & Procurement\"","v":" Practices & Procurement"},null,null,null,null,null,null,"Instructions"]
[]
[null,"Waste Practices",null,null,null,"What other \"green\" practices did you implement?",null,null,null,"1. Waste Practice Information: Enter waste amount or cost information (such as 3 and 40 yards bins used or purchased), total amount of trash generated, recycled, and sent to landfills in column C.  \nSelect the appropriate units from column C for total trash, waste recycled, and trash sent to landfills from the dropdown list in column D"]
[null,"Waste Information","Amount or Cost","Units"]
[null,"Number of 3-yard bins",null,"bins"]
[null,"3-yard bins cost",null,"US $"]
[null,"Number of 40-yard bins",null,"bins"]
[null,"40-yard bin cost",null,"US $"]
[null,"Total trash generated (sum of landfill, recycled and composted trash)",null,"pounds",null,"Comments",null,null,null,"2. Procurement Information: \nSpecify the bulk products purchased by the production. "]
[]
[null,"Total waste recycled",null,"metric tons",null,null,null,null,null,null,"Select the product type (e.g., wood or paper) from column B"]
[null,"Total trash sent to landfills",null,null,null,null,null,null,null,null,"Select the type (e.g, Recycled White Paper) from the dropdown or enter a new type into column C  "]
[]
[null,"Please specify the bulk products purchased by the production, and their amounts",null,null,null,null,null,null,null,null,"Enter the quantity of the selected product purchased in column D and the associated units into column E\nIf available, enter the cost of the product in US dollars in column F  "]
[null,"Product","Type","Quantity","Units","Cost (US$) \n(if known)","Comments (optional)"]
[null,null,null,null,null,null,null,null,null,null,"Enter any comments for the specific product in column G (optional)"]

{"sheet":"Results","index":9,"n_rows":45,"n_cols":6,"rows_kept":45,"cut":false,"hidden":false,"merged":[[1,2,1,6],[12,2,12,3],[21,2,22,2],[24,2,25,2]]}
[]
[null,null,{"$f":"\"Carbon Footprint of \"&'1-Production Info'!C9","v":"Carbon Footprint of "}]
[]
[null,null,null,"Emission Source","Metric Tons CO2","Percent Contribution"]
[null,null,null,"Electricity",{"$f":"IF(ISERROR('2-Electricity'!U14/1000), \"Data Error\", ('2-Electricity'!U14/1000))","v":0},{"$f":"IF(AND(ISNUMBER($E$10), $E$10>0), E5/$E$10, \"\")","v":""}]
[null,null,null,"Natural Gas & Heating Oil",{"$f":"IF(ISERROR('3-Nat Gas & Heating Oil'!X12/1000), \"Data Error\", '3-Nat Gas & Heating Oil'!X12/1000)","v":0},{"$f":"IF(AND(ISNUMBER($E$10), $E$10>0), E6/$E$10, \"\")","v":""}]
[null,null,null,"Fuel Use",{"$f":"IF(ISERROR('4-Fuel'!V13/1000), \"Data Error\", ('4-Fuel'!V13/1000))","v":0},{"$f":"IF(AND(ISNUMBER($E$10), $E$10>0), E7/$E$10, \"\")","v":""}]
[null,null,null,"Air Travel",{"$f":"IF(OR(ISERROR('6-Commercial Air Travel'!S12), ISERROR('7-Charter and Heli Flights'!S12)), \"Data Error\", ('6-Commercial Air Travel'!S12+'7-Charter and Heli Flights'!S12)/1000)","v":0},{"$f":"IF(AND(ISNUMBER($E$10), $E$10>0), E8/$E$10, \"\")","v":""}]
[null,null,null,"Hotels-Housing",{"$f":"IF(ISERROR('5-Hotels-Housing'!S12/1000), \"Data Error\", ('5-Hotels-Housing'!S12/1000))","v":0},{"$f":"IF(AND(ISNUMBER($E$10), $E$10>0), E9/$E$10, \"\")","v":""}]
[null,null,null,"Total",{"$f":"IF(OR(E5=\"Data Error\", E6=\"Data Error\", E7=\"Data Error\", E8=\"Data Error\", E9=\"Data Error\"), \"Data Error\",SUM(E5:E9))","v":0},{"$f":"IF(AND(ISNUMBER($E$10), E15>0), E10/$E$10, \"\")","v":""}]
[]
[]
[null,null,"  CO2  Emissions from this "]
[null,null,"  production are equivalent to*:"]
[]
[null,null,"   Annual energy use from"]
[null,null,{"$f":"IF(ISERROR(E10*homesperMTCO2),\"\", E10*homesperMTCO2)","v":0},"homes"]
[]
[null,null,"   Annual emissions from"]
[null,null,{"$f":"IF(ISERROR(E10*vehiclesperMTCO2), \"\", E10*vehiclesperMTCO2)","v":0},"vehicles"]
[]
[null,null,{"$f":"IF(ISERROR(E10*treesperMTCO2), \"\", ROUND(E10*treesperMTCO2, -1))","v":0},"trees"]
[null,null,null,"grown for 10 years"]
[]
[null,null,{"$f":"IF(ISERROR(E10*gallonsperMTCO2), \"\", ROUND(E10*gallonsperMTCO2,-1))","v":0},"gallons"]
[null,null,null,"of gasoline"]
[]
[]
[]
[]
[]
[]
[]
[]
[]
[]
[]
[]
[]
[]
[]
[]
[]
[]
[null,null,"   *Based on EPA Greenhouse Gas Equivalencies Calculator: http://www.epa.gov/cleanenergy/energy-resources/calculator.html"]

{"sheet":"Sheet1","index":10,"n_rows":0,"n_cols":0,"rows_kept":0,"cut":false,"hidden":true,"merged":[]}

{"sheet":"Lookups","index":11,"n_rows":147,"n_cols":37,"rows_kept":147,"cut":false,"hidden":true,"merged":[]}
["Area_Units","AreaConvert","HeatFuel","NG_Units","NGConvert","FO_Units","FOConvert","Equipment","EquipmentType","Reason","Fuel_Units","FuelUnitsConvert","VehicleFuels","EquipmentFuels","Countries","States","CANProvinces","AusState","FuelOpt3Units","DistanceUnits","DistanceConvert","FlightDistanceUnits","FlightDistanceConversion","FlightClass","PlaneTypes","RoomTypes","WasteUnits","Procurement","WoodTypes","PaperTypes","Water Types","PaintTypes","PaperUnits","VolUnits","EventTypes","CBECType",{"$f":"IF(ISBLANK('1-Production Info'!B17), 1, '1-Production Info'!B17)","v":1}]
["square feet",1,"Fuel Oil","cubic feet",1,"gallons",1,"Cars","Vehicle","Personal","gallons",1,"Gasoline ","Gasoline ","USA","AK","Alberta","New South Wales","miles","miles",1,"land miles",1,"First","Chartered Commercial Jet","Economy Hotel","pounds","Wood","FSC Certified","Recycled white","Bottled water","Low VOC","Reams","Gallons","On Location","Office .......................",{"$f":"IF(ISBLANK('1-Production Info'!B18), 1, '1-Production Info'!B18)","v":1}]
["square meters",10.7639104,"Natural Gas","cubic meters",0.28316999999999998,"liters",0.26417205199999999,"Motorcycles","Vehicle","Production","liters",0.26417205199999999,"Diesel Fuel ","Diesel Fuel ","Canada","AL","British Columbia","Australian Capital Teritory","hours","kilometers",0.62137119200000002,"kilometers",0.62137119200000002,"Business","Large Private Jet","Midscale Hotel","kilograms","Paper","SFI Certified","Recycled color","5 gallon bottles","No VOC","Cases","Liters","Office","Office .......................",{"$f":"IF(ISBLANK('1-Production Info'!B19), 1, '1-Production Info'!B19)","v":1}]
["square yards",9,null,"Btu",1028,"Btu",138698,"Buses","Vehicle","Rental","std cubic feet",{"$f":"1/134.71","v":7.4233538712790434E-3},"Biodiesel (B100)","Kerosene ","United Kingdom","AR","Manitoba","Victoria",null,null,null,"nautical miles",1.1516,"Economy Plus","Small Private Jet","Upscale Hotel","metric tons","Paint","Reclaimed","Virgin white",null,null,null,null,"Warehouse","Warehouse and Storage ........",{"$f":"IF(ISBLANK('1-Production Info'!B20), 1, '1-Production Info'!B20)","v":1}]
["acres",43560,null,"Megajoules",1.0846,"Megajoules",146.33000000000001,"Vans, Pickups, SUVs","Vehicle","Other",null,null,"B5","RFO (Ships)","Australia","AZ","Labrador","Queensland",null,null,null,null,null,"Economy","Helicopter","Luxury Hotel","tons","Ahesives","Reused","Virgin color",null,null,null,null,"Stage(s)","Warehouse and Storage ........",{"$f":"IF(ISBLANK('1-Production Info'!B21), 1, '1-Production Info'!B21)","v":1}]
[null,null,null,null,null,null,null,"Trucks (<18 wheel)","Vehicle",null,"Fuel_UnitsPropane",null,"B20","Propane","Albania","CA","New Brunswick","South Australia",null,null,null,null,null,"Unknown",null,"Apartment/Condo",null,"Glass","Recycled",null,null,null,null,null,null,null,{"$f":"IF(ISBLANK('1-Production Info'!B22), 1, '1-Production Info'!B22)","v":1}]
[null,null,null,null,null,null,null,"18 Wheelers","Vehicle",null,"gallons",{"$f":"L2","v":1},"B40","Fuel Oil","Algeria","CO","Newfoundland","Western Australia",null,null,null,null,null,null,null,"Average House",null,"Styrofoam","Wood alternative",null,null,null,null,null,null,null,{"$f":"IF(ISBLANK('1-Production Info'!B23), 1, '1-Production Info'!B23)","v":1}]
[null,null,null,null,null,null,null,"All Vehicles","Vehicle",null,"liters",{"$f":"L3","v":0.26417205199999999},"B99","Biodiesel (B100)","Angola","CT","Nova Scotia","Tasmaian",null,null,null,null,null,null,null,"Large House",null,"Other \"Green\" Purchases","Other",null,null,null,null,null,null,null,{"$f":"IF(ISBLANK('1-Production Info'!B24), 1, '1-Production Info'!B24)","v":1}]
[null,null,null,null,null,null,null,"Boat","Equipment",null,"kilograms",{"$f":"1/L15","v":0.53584584178498984},"Ethanol (E100)","B5","Argentina","DC","Ontario","Northern Territory",null,null,null,null,null,null,null,null,null,null,null,null,null,null,null,null,null,null,{"$f":"IF(ISBLANK('1-Production Info'!B25), 1, '1-Production Info'!B25)","v":1}]
[null,null,null,null,null,null,null,"Generator","Equipment",null,null,null,"E85","B20","Armenia","DE","Prince Edward Island",null,null,null,null,null,null,null,null,null,null,null,null,null,null,null,null,null,null,null,{"$f":"IF(ISBLANK('1-Production Info'!B26), 1, '1-Production Info'!B26)","v":1}]
[null,null,null,null,null,null,null,"Cooking Equipment","Equipment",null,null,null,"LNG","B40","Australia","FL","Quebec",null,null,null,null,null,null,null,null,null,null,null,null,null,null,null,null,null,null,null,{"$f":"IF(ISBLANK('1-Production Info'!B27), 1, '1-Production Info'!B27)","v":1}]
[null,null,null,null,null,null,null,"Lift","Equipment",null,null,null,"LPG","B99","Austria","GA","Saskatchewan",null,null,null,null,null,null,null,null,null,null,null,null,null,null,null,null,null,null,null,{"$f":"IF(ISBLANK('1-Production Info'!B28), 1, '1-Production Info'!B28)","v":1}]
[null,null,null,null,null,null,null,"Other","Equipment",null,"Propkgperm3",493,"CNG","E100","Azerbaijan","HI","Yukon",null,null,null,null,null,null,null,null,null,null,null,null,null,null,null,null,null,null,null,{"$f":"IF(ISBLANK('1-Production Info'!B29), 1, '1-Production Info'!B29)","v":1}]
[null,null,null,null,null,null,null,null,null,null,"galperm3",264.17200000000003,null,"E85","Bahrain","IA","Northwest Territories",null,null,null,null,null,null,null,null,null,null,null,null,null,null,null,null,null,null,null,{"$f":"IF(ISBLANK('1-Production Info'!B30), 1, '1-Production Info'!B30)","v":1}]
[null,null,null,null,null,null,null,null,null,null,"Propkgpergal",{"$f":"L13/L14","v":1.8662083793891857},null,"LNG","Bangladesh","ID","Nunavut",null,null,null,null,null,null,null,null,null,null,null,null,null,null,null,null,null,null,null,{"$f":"IF(ISBLANK('1-Production Info'!B31), 1, '1-Production Info'!B31)","v":1}]
[null,null,null,null,null,null,null,null,null,null,"kg/lt",{"$f":"L9/L8","v":2.028397166650278},null,"LPG","Belarus","IL",null,null,null,null,null,null,null,null,null,null,null,null,null,null,null,null,null,null,null,null,{"$f":"IF(ISBLANK('1-Production Info'!B32), 1, '1-Production Info'!B32)","v":1}]
[null,null,null,null,null,null,null,null,null,null,null,null,null,"CNG","Belgium","IN",null,null,null,null,null,null,null,null,null,null,null,null,null,null,null,null,null,null,null,null,{"$f":"IF(ISBLANK('1-Production Info'!B33), 1, '1-Production Info'!B33)","v":1}]
[null,null,null,null,null,null,null,null,null,null,null,null,null,null,"Benin","KS",null,null,null,null,null,null,null,null,null,null,null,null,null,null,null,null,null,null,null,null,{"$f":"IF(ISBLANK('1-Production Info'!B34), 1, '1-Production Info'!B34)","v":1}]
[null,null,null,null,null,null,null,null,null,null,null,null,null,null,"Bolivia","KY",null,null,null,null,null,null,null,null,null,null,null,null,null,null,null,null,null,null,null,null,{"$f":"IF(ISBLANK('1-Production Info'!B35), 1, '1-Production Info'!B35)","v":1}]
[null,null,null,null,null,null,null,null,null,null,null,null,null,null,"Bosnia and Herzegovina","LA",null,null,null,null,null,null,null,null,null,null,null,null,null,null,null,null,null,null,null,null,{"$f":"IF(ISBLANK('1-Production Info'!B36), 1, '1-Production Info'!B36)","v":1}]
[null,null,null,null,null,null,null,null,null,null,null,null,null,null,"Botswana","MA",null,null,null,null,null,null,null,null,null,null,null,null,null,null,null,null,null,null,null,null,{"$f":"IF(ISBLANK('1-Production Info'!B37), 1, '1-Production Info'!B37)","v":1}]
[null,null,null,null,null,null,null,null,null,null,null,null,null,null,"Brazil","MD",null,null,null,null,null,null,null,null,null,null,null,null,null,null,null,null,null,null,null,null,{"$f":"IF(ISBLANK('1-Production Info'!B38), 1, '1-Production Info'!B38)","v":1}]
[null,null,null,null,null,null,null,null,null,null,null,null,null,null,"Brunei Darussalam","ME",null,null,null,null,null,null,null,null,null,null,null,null,null,null,null,null,null,null,null,null,{"$f":"IF(ISBLANK('1-Production Info'!B39), 1, '1-Production Info'!B39)","v":1}]
[null,null,null,null,null,null,null,null,null,null,null,null,null,null,"Bulgaria","MI",null,null,null,null,null,null,null,null,null,null,null,null,null,null,null,null,null,null,null,null,{"$f":"IF(ISBLANK('1-Production Info'!B40), 1, '1-Production Info'!B40)","v":1}]
[null,null,null,null,null,null,null,null,null,null,null,null,null,null,"Cambodia","MN",null,null,null,null,null,null,null,null,null,null,null,null,null,null,null,null,null,null,null,null,{"$f":"IF(ISBLANK('1-Production Info'!B41), 1, '1-Production Info'!B41)","v":1}]
[null,null,null,null,null,null,null,null,null,null,null,null,null,null,"Cameroon","MO",null,null,null,null,null,null,null,null,null,null,null,null,null,null,null,null,null,null,null,null,{"$f":"IF(ISBLANK('1-Production Info'!B42), 1, '1-Production Info'!B42)","v":1}]
[null,null,null,null,null,null,null,null,null,null,null,null,null,null,"Canada","MS",null,null,null,null,null,null,null,null,null,null,null,null,null,null,null,null,null,null,null,null,{"$f":"IF(ISBLANK('1-Production Info'!B43), 1, '1-Production Info'!B43)","v":1}]
[null,null,null,null,null,null,null,null,null,null,null,null,null,null,"Chile","MT",null,null,null,null,null,null,null,null,null,null,null,null,null,null,null,null,null,null,null,null,{"$f":"IF(ISBLANK('1-Production Info'!B44), 1, '1-Production Info'!B44)","v":1}]
[null,null,null,null,null,null,null,null,null,null,null,null,null,null,"China (including Hong Kong)","NC",null,null,null,null,null,null,null,null,null,null,null,null,null,null,null,null,null,null,null,null,{"$f":"IF(ISBLANK('1-Production Info'!B45), 1, '1-Production Info'!B45)","v":1}]
[null,null,null,null,null,null,null,null,null,null,null,null,null,null,"Taiwan, China","ND",null,null,null,null,null,null,null,null,null,null,null,null,null,null,null,null,null,null,null,null,{"$f":"IF(ISBLANK('1-Production Info'!B46), 1, '1-Production Info'!B46)","v":1}]
[null,null,null,null,null,null,null,null,null,null,null,null,null,null,"Colombia","NE",null,null,null,null,null,null,null,null,null,null,null,null,null,null,null,null,null,null,null,null,{"$f":"IF(ISBLANK('1-Production Info'!B47), 1, '1-Production Info'!B47)","v":1}]
[null,null,null,null,null,null,null,null,null,null,null,null,null,null,"Congo","NH",null,null,null,null,null,null,null,null,null,null,null,null,null,null,null,null,null,null,null,null,{"$f":"IF(ISBLANK('1-Production Info'!B48), 1, '1-Production Info'!B48)","v":1}]
[null,null,null,null,null,null,null,null,null,null,null,null,null,null,"Costa Rica","NJ",null,null,null,null,null,null,null,null,null,null,null,null,null,null,null,null,null,null,null,null,{"$f":"IF(ISBLANK('1-Production Info'!B49), 1, '1-Production Info'!B49)","v":1}]
[null,null,null,null,null,null,null,null,null,null,null,null,null,null,"Côte d'Ivoire","NM",null,null,null,null,null,null,null,null,null,null,null,null,null,null,null,null,null,null,null,null,{"$f":"IF(ISBLANK('1-Production Info'!B50), 1, '1-Production Info'!B50)","v":1}]
[null,null,null,null,null,null,null,null,null,null,null,null,null,null,"Croatia","NV",null,null,null,null,null,null,null,null,null,null,null,null,null,null,null,null,null,null,null,null,{"$f":"IF(ISBLANK('1-Production Info'!B51), 1, '1-Production Info'!B51)","v":1}]
[null,null,null,null,null,null,null,null,null,null,null,null,null,null,"Cuba","NY",null,null,null,null,null,null,null,null,null,null,null,null,null,null,null,null,null,null,null,null,{"$f":"IF(ISBLANK('1-Production Info'!B52), 1, '1-Production Info'!B52)","v":1}]
[null,null,null,null,null,null,null,null,null,null,null,null,null,null,"Cyprus","OH",null,null,null,null,null,null,null,null,null,null,null,null,null,null,null,null,null,null,null,null,{"$f":"IF(ISBLANK('1-Production Info'!B53), 1, '1-Production Info'!B53)","v":1}]
[null,null,null,null,null,null,null,null,null,null,null,null,null,null,"Czech Republic","OK",null,null,null,null,null,null,null,null,null,null,null,null,null,null,null,null,null,null,null,null,{"$f":"IF(ISBLANK('1-Production Info'!B54), 1, '1-Production Info'!B54)","v":1}]
[null,null,null,null,null,null,null,null,null,null,null,null,null,null,"Dem. People's Republic of Korea","OR",null,null,null,null,null,null,null,null,null,null,null,null,null,null,null,null,null,null,null,null,{"$f":"IF(ISBLANK('1-Production Info'!B55), 1, '1-Production Info'!B55)","v":1}]
[null,null,null,null,null,null,null,null,null,null,null,null,null,null,"Democratic Republic of Congo","PA"]
[null,null,null,null,null,null,null,null,null,null,null,null,null,null,"Denmark","Puerto Rico"]
[null,null,null,null,null,null,null,null,null,null,null,null,null,null,"Dominican Republic","RI"]
[null,null,null,null,null,null,null,null,null,null,null,null,null,null,"Ecuador","SC"]
[null,null,null,null,null,null,null,null,null,null,null,null,null,null,"Egypt","SD"]
[null,null,null,null,null,null,null,null,null,null,null,null,null,null,"El Salvador","TN"]
[null,null,null,null,null,null,null,null,null,null,null,null,null,null,"Eritrea","TX"]
[null,null,null,null,null,null,null,null,null,null,null,null,null,null,"Estonia","UT"]
[null,null,null,null,null,null,null,null,null,null,null,null,null,null,"Ethiopia","VA"]
[null,null,null,null,null,null,null,null,null,null,null,null,null,null,"Finland","VT"]
[null,null,null,null,null,null,null,null,null,null,null,null,null,null,"France","WA"]
[null,null,null,null,null,null,null,null,null,null,null,null,null,null,"FYR of Macedonia","WI"]
[null,null,null,null,null,null,null,null,null,null,null,null,null,null,"Gabon","WV"]
[null,null,null,null,null,null,null,null,null,null,null,null,null,null,"Georgia","WY"]
[null,null,null,null,null,null,null,null,null,null,null,null,null,null,"Germany"]
[null,null,null,null,null,null,null,null,null,null,null,null,null,null,"Ghana"]
[null,null,null,null,null,null,null,null,null,null,null,null,null,null,"Gibraltar",null,"*Note:  make sure lists match named ranges and the all of the country names correspond to the list of countried on the ElectricityEFs page"]
[null,null,null,null,null,null,null,null,null,null,null,null,null,null,"Greece"]
[null,null,null,null,null,null,null,null,null,null,null,null,null,null,"Guatemala"]
[null,null,null,null,null,null,null,null,null,null,null,null,null,null,"Haiti"]
[null,null,null,null,null,null,null,null,null,null,null,null,null,null,"Honduras"]
[null,null,null,null,null,null,null,null,null,null,null,null,null,null,"Hong Kong, China"]
[null,null,null,null,null,null,null,null,null,null,null,null,null,null,"Hungary"]
[null,null,null,null,null,null,null,null,null,null,null,null,null,null,"Iceland"]
[null,null,null,null,null,null,null,null,null,null,null,null,null,null,"India"]
[null,null,null,null,null,null,null,null,null,null,null,null,null,null,"Indonesia"]
[null,null,null,null,null,null,null,null,null,null,null,null,null,null,"Iraq"]
[null,null,null,null,null,null,null,null,null,null,null,null,null,null,"Ireland"]
[null,null,null,null,null,null,null,null,null,null,null,null,null,null,"Islamic Republic of Iran"]
[null,null,null,null,null,null,null,null,null,null,null,null,null,null,"Israel"]
[null,null,null,null,null,null,null,null,null,null,null,null,null,null,"Italy"]
[null,null,null,null,null,null,null,null,null,null,null,null,null,null,"Jamaica"]
[null,null,null,null,null,null,null,null,null,null,null,null,null,null,"Japan"]
[null,null,null,null,null,null,null,null,null,null,null,null,null,null,"Jordan"]
[null,null,null,null,null,null,null,null,null,null,null,null,null,null,"Kazakhstan"]
[null,null,null,null,null,null,null,null,null,null,null,null,null,null,"Kenya"]
[null,null,null,null,null,null,null,null,null,null,null,null,null,null,"Korea"]
[null,null,null,null,null,null,null,null,null,null,null,null,null,null,"Kuwait"]
[null,null,null,null,null,null,null,null,null,null,null,null,null,null,"Kyrgyzstan"]
[null,null,null,null,null,null,null,null,null,null,null,null,null,null,"Latvia"]
[null,null,null,null,null,null,null,null,null,null,null,null,null,null,"Lebanon"]
[null,null,null,null,null,null,null,null,null,null,null,null,null,null,"Libyan Arab Jamahiriya"]
[null,null,null,null,null,null,null,null,null,null,null,null,null,null,"Lithuania"]
[null,null,null,null,null,null,null,null,null,null,null,null,null,null,"Luxembourg"]
[null,null,null,null,null,null,null,null,null,null,null,null,null,null,"Malaysia"]
[null,null,null,null,null,null,null,null,null,null,null,null,null,null,"Malta"]
[null,null,null,null,null,null,null,null,null,null,null,null,null,null,"Mexico"]
[null,null,null,null,null,null,null,null,null,null,null,null,null,null,"Middle East"]
[null,null,null,null,null,null,null,null,null,null,null,null,null,null,"Mongolia"]
[null,null,null,null,null,null,null,null,null,null,null,null,null,null,"Morocco"]
[null,null,null,null,null,null,null,null,null,null,null,null,null,null,"Mozambique"]
[null,null,null,null,null,null,null,null,null,null,null,null,null,null,"Myanmar"]
[null,null,null,null,null,null,null,null,null,null,null,null,null,null,"Namibia"]
[null,null,null,null,null,null,null,null,null,null,null,null,null,null,"Nepal"]
[null,null,null,null,null,null,null,null,null,null,null,null,null,null,"Netherlands"]
[null,null,null,null,null,null,null,null,null,null,null,null,null,null,"Netherlands Antilles"]
[null,null,null,null,null,null,null,null,null,null,null,null,null,null,"New Zealand"]
[null,null,null,null,null,null,null,null,null,null,null,null,null,null,"Nicaragua"]
[null,null,null,null,null,null,null,null,null,null,null,null,null,null,"Nigeria"]
[null,null,null,null,null,null,null,null,null,null,null,null,null,null,"Norway"]
[null,null,null,null,null,null,null,null,null,null,null,null,null,null,"Oman"]
[null,null,null,null,null,null,null,null,null,null,null,null,null,null,"Other Africa"]
[null,null,null,null,null,null,null,null,null,null,null,null,null,null,"Other Asia"]
[null,null,null,null,null,null,null,null,null,null,null,null,null,null,"Other Latin America"]
[null,null,null,null,null,null,null,null,null,null,null,null,null,null,"Pakistan"]
[null,null,null,null,null,null,null,null,null,null,null,null,null,null,"Panama"]
[null,null,null,null,null,null,null,null,null,null,null,null,null,null,"Paraguay"]
[null,null,null,null,null,null,null,null,null,null,null,null,null,null,"China (mainland)"]
[null,null,null,null,null,null,null,null,null,null,null,null,null,null,"Peru"]
[null,null,null,null,null,null,null,null,null,null,null,null,null,null,"Philippines"]
[null,null,null,null,null,null,null,null,null,null,null,null,null,null,"Poland"]
[null,null,null,null,null,null,null,null,null,null,null,null,null,null,"Portugal"]
[null,null,null,null,null,null,null,null,null,null,null,null,null,null,"Qatar"]
[null,null,null,null,null,null,null,null,null,null,null,null,null,null,"Republic of Moldova"]
[null,null,null,null,null,null,null,null,null,null,null,null,null,null,"Romania"]
[null,null,null,null,null,null,null,null,null,null,null,null,null,null,"Russian Federation"]
[null,null,null,null,null,null,null,null,null,null,null,null,null,null,"Saudi Arabia"]
[null,null,null,null,null,null,null,null,null,null,null,null,null,null,"Senegal"]
[null,null,null,null,null,null,null,null,null,null,null,null,null,null,"Serbia"]
[null,null,null,null,null,null,null,null,null,null,null,null,null,null,"Singapore"]
[null,null,null,null,null,null,null,null,null,null,null,null,null,null,"Slovak Republic"]
[null,null,null,null,null,null,null,null,null,null,null,null,null,null,"Slovenia"]
[null,null,null,null,null,null,null,null,null,null,null,null,null,null,"South Africa"]
[null,null,null,null,null,null,null,null,null,null,null,null,null,null,"Spain"]
[null,null,null,null,null,null,null,null,null,null,null,null,null,null,"Sri Lanka"]
[null,null,null,null,null,null,null,null,null,null,null,null,null,null,"Sudan"]
[null,null,null,null,null,null,null,null,null,null,null,null,null,null,"Sweden"]
[null,null,null,null,null,null,null,null,null,null,null,null,null,null,"Switzerland"]
[null,null,null,null,null,null,null,null,null,null,null,null,null,null,"Syrian Arab Republic"]
[null,null,null,null,null,null,null,null,null,null,null,null,null,null,"Tajikistan"]
[null,null,null,null,null,null,null,null,null,null,null,null,null,null,"Thailand"]
[null,null,null,null,null,null,null,null,null,null,null,null,null,null,"Togo"]
[null,null,null,null,null,null,null,null,null,null,null,null,null,null,"Trinidad and Tobago"]
[null,null,null,null,null,null,null,null,null,null,null,null,null,null,"Tunisia"]
[null,null,null,null,null,null,null,null,null,null,null,null,null,null,"Turkey"]
[null,null,null,null,null,null,null,null,null,null,null,null,null,null,"Turkmenistan"]
[null,null,null,null,null,null,null,null,null,null,null,null,null,null,"Ukraine"]
[null,null,null,null,null,null,null,null,null,null,null,null,null,null,"United Arab Emirates"]
[null,null,null,null,null,null,null,null,null,null,null,null,null,null,"United Kingdom"]
[null,null,null,null,null,null,null,null,null,null,null,null,null,null,"United Republic of Tanzania"]
[null,null,null,null,null,null,null,null,null,null,null,null,null,null,"United States"]
[null,null,null,null,null,null,null,null,null,null,null,null,null,null,"Uruguay"]
[null,null,null,null,null,null,null,null,null,null,null,null,null,null,"Uzbekistan"]
[null,null,null,null,null,null,null,null,null,null,null,null,null,null,"Venezuela"]
[null,null,null,null,null,null,null,null,null,null,null,null,null,null,"Vietnam"]
[null,null,null,null,null,null,null,null,null,null,null,null,null,null,"Yemen"]
[null,null,null,null,null,null,null,null,null,null,null,null,null,null,"Zambia"]
[null,null,null,null,null,null,null,null,null,null,null,null,null,null,"Zimbabwe"]

{"sheet":"ElectricityEFs","index":12,"n_rows":218,"n_cols":14,"rows_kept":218,"cut":false,"hidden":true,"merged":[]}
["ElectricityCode","Country","State/Province","lb/MWh","kg CO2 per kWh","Reference",null,null,null,null,null,null,null,"http://www.eia.doe.gov/cneaf/electricity/epa/epat7p4.html#_ftn1"]
["Albania","Albania",null,null,1.11746E-2,"Greenhouse Gas Protocol Initiative, Emission Factors from Cross-sector Tools, Versions 1.3, August 2012.  “Electricity Other Countries” worksheet"]
["Algeria","Algeria",null,null,0.57596690000000006,"Greenhouse Gas Protocol Initiative, Emission Factors from Cross-sector Tools, Versions 1.3, August 2012.  “Electricity Other Countries” worksheet"]
["Angola","Angola",null,null,0.23744970000000001,"Greenhouse Gas Protocol Initiative, Emission Factors from Cross-sector Tools, Versions 1.3, August 2012.  “Electricity Other Countries” worksheet"]
["Argentina","Argentina",null,null,0.35531109999999999,"Greenhouse Gas Protocol Initiative, Emission Factors from Cross-sector Tools, Versions 1.3, August 2012.  “Electricity Other Countries” worksheet"]
["Armenia","Armenia",null,null,0.108001,"Greenhouse Gas Protocol Initiative, Emission Factors from Cross-sector Tools, Versions 1.3, August 2012.  “Electricity Other Countries” worksheet"]
["Australia","Australia",null,null,0.85293099999999999,"Greenhouse Gas Protocol Initiative, Emission Factors from Cross-sector Tools, Versions 1.3, August 2012.  “Electricity Other Countries” worksheet"]
["Austria","Austria",null,null,0.16323199999999999,"Greenhouse Gas Protocol Initiative, Emission Factors from Cross-sector Tools, Versions 1.3, August 2012.  “Electricity Other Countries” worksheet"]
["Azerbaijan","Azerbaijan",null,null,0.44342480000000001,"Greenhouse Gas Protocol Initiative, Emission Factors from Cross-sector Tools, Versions 1.3, August 2012.  “Electricity Other Countries” worksheet"]
["Bahrain","Bahrain",null,null,0.66487019999999997,"Greenhouse Gas Protocol Initiative, Emission Factors from Cross-sector Tools, Versions 1.3, August 2012.  “Electricity Other Countries” worksheet"]
["Bangladesh","Bangladesh",null,null,0.58528729999999995,"Greenhouse Gas Protocol Initiative, Emission Factors from Cross-sector Tools, Versions 1.3, August 2012.  “Electricity Other Countries” worksheet"]
["Belarus","Belarus",null,null,0.30233019999999999,"Greenhouse Gas Protocol Initiative, Emission Factors from Cross-sector Tools, Versions 1.3, August 2012.  “Electricity Other Countries” worksheet"]
["Belgium","Belgium",null,null,0.217893,"Greenhouse Gas Protocol Initiative, Emission Factors from Cross-sector Tools, Versions 1.3, August 2012.  “Electricity Other Countries” worksheet"]
["Benin","Benin",null,null,0.72500789999999993,"Greenhouse Gas Protocol Initiative, Emission Factors from Cross-sector Tools, Versions 1.3, August 2012.  “Electricity Other Countries” worksheet"]
["Bolivia","Bolivia",null,null,0.39330509999999996,"Greenhouse Gas Protocol Initiative, Emission Factors from Cross-sector Tools, Versions 1.3, August 2012.  “Electricity Other Countries” worksheet"]
["Bosnia and Herzegovina","Bosnia and Herzegovina",null,null,0.77596540000000003,"Greenhouse Gas Protocol Initiative, Emission Factors from Cross-sector Tools, Versions 1.3, August 2012.  “Electricity Other Countries” worksheet"]
["Botswana","Botswana",null,null,2.0632523000000003,"Greenhouse Gas Protocol Initiative, Emission Factors from Cross-sector Tools, Versions 1.3, August 2012.  “Electricity Other Countries” worksheet"]
["Brazil","Brazil",null,null,6.4127799999999999E-2,"Greenhouse Gas Protocol Initiative, Emission Factors from Cross-sector Tools, Versions 1.3, August 2012.  “Electricity Other Countries” worksheet"]
["Brunei Darussalam","Brunei Darussalam",null,null,0.75522540000000005,"Greenhouse Gas Protocol Initiative, Emission Factors from Cross-sector Tools, Versions 1.3, August 2012.  “Electricity Other Countries” worksheet"]
["Bulgaria","Bulgaria",null,null,0.46344690000000005,"Greenhouse Gas Protocol Initiative, Emission Factors from Cross-sector Tools, Versions 1.3, August 2012.  “Electricity Other Countries” worksheet"]
["Cambodia","Cambodia",null,null,1.1509245000000001,"Greenhouse Gas Protocol Initiative, Emission Factors from Cross-sector Tools, Versions 1.3, August 2012.  “Electricity Other Countries” worksheet"]
["Cameroon","Cameroon",null,null,0.2426807,"Greenhouse Gas Protocol Initiative, Emission Factors from Cross-sector Tools, Versions 1.3, August 2012.  “Electricity Other Countries” worksheet"]
["Canada","Canada",null,null,0.16723199999999999,"Greenhouse Gas Protocol Initiative, Emission Factors from Cross-sector Tools, Versions 1.3, August 2012.  “Electricity Other Countries” worksheet"]
["Chile","Chile",null,null,0.37281999999999998,"Greenhouse Gas Protocol Initiative, Emission Factors from Cross-sector Tools, Versions 1.3, August 2012.  “Electricity Other Countries” worksheet"]
["China (including Hong Kong)","China (including Hong Kong)-IEA",null,null,0.74274549999999995,"Greenhouse Gas Protocol Initiative, Emission Factors from Cross-sector Tools, Versions 1.3, August 2012.  “Electricity Other Countries” worksheet"]
["Taiwan, China","Taiwan, China",null,null,0.6347818999999999,"Greenhouse Gas Protocol Initiative, Emission Factors from Cross-sector Tools, Versions 1.3, August 2012.  “Electricity Other Countries” worksheet"]
["Colombia","Colombia",null,null,0.17527139999999999,"Greenhouse Gas Protocol Initiative, Emission Factors from Cross-sector Tools, Versions 1.3, August 2012.  “Electricity Other Countries” worksheet"]
["Congo","Congo",null,null,0.2068295,"Greenhouse Gas Protocol Initiative, Emission Factors from Cross-sector Tools, Versions 1.3, August 2012.  “Electricity Other Countries” worksheet"]
["Costa Rica","Costa Rica",null,null,3.9811100000000002E-2,"Greenhouse Gas Protocol Initiative, Emission Factors from Cross-sector Tools, Versions 1.3, August 2012.  “Electricity Other Countries” worksheet"]
["Côte d'Ivoire","Côte d'Ivoire",null,null,0.42639819999999995,"Greenhouse Gas Protocol Initiative, Emission Factors from Cross-sector Tools, Versions 1.3, August 2012.  “Electricity Other Countries” worksheet"]
["Croatia","Croatia",null,null,0.28338770000000002,"Greenhouse Gas Protocol Initiative, Emission Factors from Cross-sector Tools, Versions 1.3, August 2012.  “Electricity Other Countries” worksheet"]
["Cuba","Cuba",null,null,0.75153920000000007,"Greenhouse Gas Protocol Initiative, Emission Factors from Cross-sector Tools, Versions 1.3, August 2012.  “Electricity Other Countries” worksheet"]
["Cyprus","Cyprus",null,null,0.74427239999999995,"Greenhouse Gas Protocol Initiative, Emission Factors from Cross-sector Tools, Versions 1.3, August 2012.  “Electricity Other Countries” worksheet"]
["Czech Republic","Czech Republic",null,null,0.51425300000000007,"Greenhouse Gas Protocol Initiative, Emission Factors from Cross-sector Tools, Versions 1.3, August 2012.  “Electricity Other Countries” worksheet"]
["Dem. People's Republic of Korea","Dem. People's Republic of Korea",null,null,0.49886430000000004,"Greenhouse Gas Protocol Initiative, Emission Factors from Cross-sector Tools, Versions 1.3, August 2012.  “Electricity Other Countries” worksheet"]
["Democratic Republic of Congo","Democratic Republic of Congo",null,null,2.9338000000000003E-3,"Greenhouse Gas Protocol Initiative, Emission Factors from Cross-sector Tools, Versions 1.3, August 2012.  “Electricity Other Countries” worksheet"]
["Denmark","Denmark",null,null,0.30274900000000005,"Greenhouse Gas Protocol Initiative, Emission Factors from Cross-sector Tools, Versions 1.3, August 2012.  “Electricity Other Countries” worksheet"]
["Dominican Republic","Dominican Republic",null,null,0.59053560000000005,"Greenhouse Gas Protocol Initiative, Emission Factors from Cross-sector Tools, Versions 1.3, August 2012.  “Electricity Other Countries” worksheet"]
["Ecuador","Ecuador",null,null,0.28964429999999997,"Greenhouse Gas Protocol Initiative, Emission Factors from Cross-sector Tools, Versions 1.3, August 2012.  “Electricity Other Countries” worksheet"]
["Egypt","Egypt",null,null,0.46553469999999997,"Greenhouse Gas Protocol Initiative, Emission Factors from Cross-sector Tools, Versions 1.3, August 2012.  “Electricity Other Countries” worksheet"]
["El Salvador","El Salvador",null,null,0.31878250000000002,"Greenhouse Gas Protocol Initiative, Emission Factors from Cross-sector Tools, Versions 1.3, August 2012.  “Electricity Other Countries” worksheet"]
["Eritrea","Eritrea",null,null,0.67158640000000003,"Greenhouse Gas Protocol Initiative, Emission Factors from Cross-sector Tools, Versions 1.3, August 2012.  “Electricity Other Countries” worksheet"]
["Estonia","Estonia",null,null,0.70385299999999995,"Greenhouse Gas Protocol Initiative, Emission Factors from Cross-sector Tools, Versions 1.3, August 2012.  “Electricity Other Countries” worksheet"]
["Ethiopia","Ethiopia",null,null,0.1183091,"Greenhouse Gas Protocol Initiative, Emission Factors from Cross-sector Tools, Versions 1.3, August 2012.  “Electricity Other Countries” worksheet"]
["Finland","Finland",null,null,0.205405,"Greenhouse Gas Protocol Initiative, Emission Factors from Cross-sector Tools, Versions 1.3, August 2012.  “Electricity Other Countries” worksheet"]
["France","France",null,null,8.9851E-2,"Greenhouse Gas Protocol Initiative, Emission Factors from Cross-sector Tools, Versions 1.3, August 2012.  “Electricity Other Countries” worksheet"]
["FYR of Macedonia","FYR of Macedonia",null,null,0.70990359999999997,"Greenhouse Gas Protocol Initiative, Emission Factors from Cross-sector Tools, Versions 1.3, August 2012.  “Electricity Other Countries” worksheet"]
["Gabon","Gabon",null,null,0.32213749999999997,"Greenhouse Gas Protocol Initiative, Emission Factors from Cross-sector Tools, Versions 1.3, August 2012.  “Electricity Other Countries” worksheet"]
["Georgia","Georgia",null,null,0.12864200000000001,"Greenhouse Gas Protocol Initiative, Emission Factors from Cross-sector Tools, Versions 1.3, August 2012.  “Electricity Other Countries” worksheet"]
["Germany","Germany",null,null,0.43049599999999999,"Greenhouse Gas Protocol Initiative, Emission Factors from Cross-sector Tools, Versions 1.3, August 2012.  “Electricity Other Countries” worksheet"]
["Ghana","Ghana",null,null,0.1865319,"Greenhouse Gas Protocol Initiative, Emission Factors from Cross-sector Tools, Versions 1.3, August 2012.  “Electricity Other Countries” worksheet"]
["Gibraltar","Gibraltar",null,null,0.73951719999999999,"Greenhouse Gas Protocol Initiative, Emission Factors from Cross-sector Tools, Versions 1.3, August 2012.  “Electricity Other Countries” worksheet"]
["Greece","Greece",null,null,0.72239900000000001,"Greenhouse Gas Protocol Initiative, Emission Factors from Cross-sector Tools, Versions 1.3, August 2012.  “Electricity Other Countries” worksheet"]
["Guatemala","Guatemala",null,null,0.34910800000000003,"Greenhouse Gas Protocol Initiative, Emission Factors from Cross-sector Tools, Versions 1.3, August 2012.  “Electricity Other Countries” worksheet"]
["Haiti","Haiti",null,null,0.54712480000000008,"Greenhouse Gas Protocol Initiative, Emission Factors from Cross-sector Tools, Versions 1.3, August 2012.  “Electricity Other Countries” worksheet"]
["Honduras","Honduras",null,null,0.34432299999999999,"Greenhouse Gas Protocol Initiative, Emission Factors from Cross-sector Tools, Versions 1.3, August 2012.  “Electricity Other Countries” worksheet"]
["Hong Kong, China","Hong Kong, China",null,null,0.7629724,"Greenhouse Gas Protocol Initiative, Emission Factors from Cross-sector Tools, Versions 1.3, August 2012.  “Electricity Other Countries” worksheet"]
["Hungary","Hungary",null,null,0.30206,"Greenhouse Gas Protocol Initiative, Emission Factors from Cross-sector Tools, Versions 1.3, August 2012.  “Electricity Other Countries” worksheet"]
["Iceland","Iceland",null,null,4.2400000000000001E-4,"Greenhouse Gas Protocol Initiative, Emission Factors from Cross-sector Tools, Versions 1.3, August 2012.  “Electricity Other Countries” worksheet"]
["India","India",null,null,0.95140590000000003,"Greenhouse Gas Protocol Initiative, Emission Factors from Cross-sector Tools, Versions 1.3, August 2012.  “Electricity Other Countries” worksheet"]
["Indonesia","Indonesia",null,null,0.74569039999999998,"Greenhouse Gas Protocol Initiative, Emission Factors from Cross-sector Tools, Versions 1.3, August 2012.  “Electricity Other Countries” worksheet"]
["Iraq","Iraq",null,null,0.68408610000000003,"Greenhouse Gas Protocol Initiative, Emission Factors from Cross-sector Tools, Versions 1.3, August 2012.  “Electricity Other Countries” worksheet"]
["Ireland","Ireland",null,null,0.46523899999999996,"Greenhouse Gas Protocol Initiative, Emission Factors from Cross-sector Tools, Versions 1.3, August 2012.  “Electricity Other Countries” worksheet"]
["Islamic Republic of Iran","Islamic Republic of Iran",null,null,0.62996269999999999,"Greenhouse Gas Protocol Initiative, Emission Factors from Cross-sector Tools, Versions 1.3, August 2012.  “Electricity Other Countries” worksheet"]
["Israel","Israel",null,null,0.69488300000000003,"Greenhouse Gas Protocol Initiative, Emission Factors from Cross-sector Tools, Versions 1.3, August 2012.  “Electricity Other Countries” worksheet"]
["Italy","Italy",null,null,0.386411,"Greenhouse Gas Protocol Initiative, Emission Factors from Cross-sector Tools, Versions 1.3, August 2012.  “Electricity Other Countries” worksheet"]
["Jamaica","Jamaica",null,null,0.54445939999999993,"Greenhouse Gas Protocol Initiative, Emission Factors from Cross-sector Tools, Versions 1.3, August 2012.  “Electricity Other Countries” worksheet"]
["Japan","Japan",null,null,0.41470899999999999,"Greenhouse Gas Protocol Initiative, Emission Factors from Cross-sector Tools, Versions 1.3, August 2012.  “Electricity Other Countries” worksheet"]
["Jordan","Jordan",null,null,0.58054799999999995,"Greenhouse Gas Protocol Initiative, Emission Factors from Cross-sector Tools, Versions 1.3, August 2012.  “Electricity Other Countries” worksheet"]
["Kazakhstan","Kazakhstan",null,null,0.4800584,"Greenhouse Gas Protocol Initiative, Emission Factors from Cross-sector Tools, Versions 1.3, August 2012.  “Electricity Other Countries” worksheet"]
["Kenya","Kenya",null,null,0.3949455,"Greenhouse Gas Protocol Initiative, Emission Factors from Cross-sector Tools, Versions 1.3, August 2012.  “Electricity Other Countries” worksheet"]
["Korea","Korea",null,null,0.497699,"Greenhouse Gas Protocol Initiative, Emission Factors from Cross-sector Tools, Versions 1.3, August 2012.  “Electricity Other Countries” worksheet"]
["Kuwait","Kuwait",null,null,0.86960519999999997,"Greenhouse Gas Protocol Initiative, Emission Factors from Cross-sector Tools, Versions 1.3, August 2012.  “Electricity Other Countries” worksheet"]
["Kyrgyzstan","Kyrgyzstan",null,null,8.0966099999999999E-2,"Greenhouse Gas Protocol Initiative, Emission Factors from Cross-sector Tools, Versions 1.3, August 2012.  “Electricity Other Countries” worksheet"]
["Latvia","Latvia",null,null,0.15307419999999999,"Greenhouse Gas Protocol Initiative, Emission Factors from Cross-sector Tools, Versions 1.3, August 2012.  “Electricity Other Countries” worksheet"]
["Lebanon","Lebanon",null,null,0.71667239999999999,"Greenhouse Gas Protocol Initiative, Emission Factors from Cross-sector Tools, Versions 1.3, August 2012.  “Electricity Other Countries” worksheet"]
["Libyan Arab Jamahiriya","Libyan Arab Jamahiriya",null,null,0.87178420000000001,"Greenhouse Gas Protocol Initiative, Emission Factors from Cross-sector Tools, Versions 1.3, August 2012.  “Electricity Other Countries” worksheet"]
["Lithuania","Lithuania",null,null,0.1111529,"Greenhouse Gas Protocol Initiative, Emission Factors from Cross-sector Tools, Versions 1.3, August 2012.  “Electricity Other Countries” worksheet"]
["Luxembourg","Luxembourg",null,null,0.38428600000000002,"Greenhouse Gas Protocol Initiative, Emission Factors from Cross-sector Tools, Versions 1.3, August 2012.  “Electricity Other Countries” worksheet"]
["Malaysia","Malaysia",null,null,0.64864769999999994,"Greenhouse Gas Protocol Initiative, Emission Factors from Cross-sector Tools, Versions 1.3, August 2012.  “Electricity Other Countries” worksheet"]
["Malta","Malta",null,null,0.85041529999999999,"Greenhouse Gas Protocol Initiative, Emission Factors from Cross-sector Tools, Versions 1.3, August 2012.  “Electricity Other Countries” worksheet"]
["Mexico","Mexico",null,null,0.45498300000000003,"Greenhouse Gas Protocol Initiative, Emission Factors from Cross-sector Tools, Versions 1.3, August 2012.  “Electricity Other Countries” worksheet"]
["Middle East","Middle East",null,null,0.69025829999999999,"Greenhouse Gas Protocol Initiative, Emission Factors from Cross-sector Tools, Versions 1.3, August 2012.  “Electricity Other Countries” worksheet"]
["Mongolia","Mongolia",null,null,0.5353523,"Greenhouse Gas Protocol Initiative, Emission Factors from Cross-sector Tools, Versions 1.3, August 2012.  “Electricity Other Countries” worksheet"]
["Morocco","Morocco",null,null,0.63844460000000003,"Greenhouse Gas Protocol Initiative, Emission Factors from Cross-sector Tools, Versions 1.3, August 2012.  “Electricity Other Countries” worksheet"]
["Mozambique","Mozambique",null,null,5.0329999999999993E-4,"Greenhouse Gas Protocol Initiative, Emission Factors from Cross-sector Tools, Versions 1.3, August 2012.  “Electricity Other Countries” worksheet"]
["Myanmar","Myanmar",null,null,0.19584669999999998,"Greenhouse Gas Protocol Initiative, Emission Factors from Cross-sector Tools, Versions 1.3, August 2012.  “Electricity Other Countries” worksheet"]
["Namibia","Namibia",null,null,0.23690129999999998,"Greenhouse Gas Protocol Initiative, Emission Factors from Cross-sector Tools, Versions 1.3, August 2012.  “Electricity Other Countries” worksheet"]
["Nepal","Nepal",null,null,4.3430999999999999E-3,"Greenhouse Gas Protocol Initiative, Emission Factors from Cross-sector Tools, Versions 1.3, August 2012.  “Electricity Other Countries” worksheet"]
["Netherlands","Netherlands",null,null,0.37448500000000001,"Greenhouse Gas Protocol Initiative, Emission Factors from Cross-sector Tools, Versions 1.3, August 2012.  “Electricity Other Countries” worksheet"]
["Netherlands Antilles","Netherlands Antilles",null,null,0.70689829999999998,"Greenhouse Gas Protocol Initiative, Emission Factors from Cross-sector Tools, Versions 1.3, August 2012.  “Electricity Other Countries” worksheet"]
["New Zealand","New Zealand",null,null,0.16650299999999998,"Greenhouse Gas Protocol Initiative, Emission Factors from Cross-sector Tools, Versions 1.3, August 2012.  “Electricity Other Countries” worksheet"]
["Nicaragua","Nicaragua",null,null,0.50581229999999999,"Greenhouse Gas Protocol Initiative, Emission Factors from Cross-sector Tools, Versions 1.3, August 2012.  “Electricity Other Countries” worksheet"]
["Nigeria","Nigeria",null,null,0.4157342,"Greenhouse Gas Protocol Initiative, Emission Factors from Cross-sector Tools, Versions 1.3, August 2012.  “Electricity Other Countries” worksheet"]
["Norway","Norway",null,null,1.7288000000000001E-2,"Greenhouse Gas Protocol Initiative, Emission Factors from Cross-sector Tools, Versions 1.3, August 2012.  “Electricity Other Countries” worksheet"]
["Oman","Oman",null,null,0.84248789999999996,"Greenhouse Gas Protocol Initiative, Emission Factors from Cross-sector Tools, Versions 1.3, August 2012.  “Electricity Other Countries” worksheet"]
["Other Africa","Other Africa",null,null,0.49449779999999999,"Greenhouse Gas Protocol Initiative, Emission Factors from Cross-sector Tools, Versions 1.3, August 2012.  “Electricity Other Countries” worksheet"]
["Other Asia","Other Asia",null,null,0.26807249999999999,"Greenhouse Gas Protocol Initiative, Emission Factors from Cross-sector Tools, Versions 1.3, August 2012.  “Electricity Other Countries” worksheet"]
["Other Latin America","Other Latin America",null,null,0.24890889999999999,"Greenhouse Gas Protocol Initiative, Emission Factors from Cross-sector Tools, Versions 1.3, August 2012.  “Electricity Other Countries” worksheet"]
["Pakistan","Pakistan",null,null,0.45772469999999998,"Greenhouse Gas Protocol Initiative, Emission Factors from Cross-sector Tools, Versions 1.3, August 2012.  “Electricity Other Countries” worksheet"]
["Panama","Panama",null,null,0.3021739,"Greenhouse Gas Protocol Initiative, Emission Factors from Cross-sector Tools, Versions 1.3, August 2012.  “Electricity Other Countries” worksheet"]
["Paraguay","Paraguay",null,null,0,"Greenhouse Gas Protocol Initiative, Emission Factors from Cross-sector Tools, Versions 1.3, August 2012.  “Electricity Other Countries” worksheet"]
["China (mainland)","China (mainland)",null,null,0.74256889999999998,"Greenhouse Gas Protocol Initiative, Emission Factors from Cross-sector Tools, Versions 1.3, August 2012.  “Electricity Other Countries” worksheet"]
["Peru","Peru",null,null,0.23630660000000001,"Greenhouse Gas Protocol Initiative, Emission Factors from Cross-sector Tools, Versions 1.3, August 2012.  “Electricity Other Countries” worksheet"]
["Philippines","Philippines",null,null,0.47815949999999996,"Greenhouse Gas Protocol Initiative, Emission Factors from Cross-sector Tools, Versions 1.3, August 2012.  “Electricity Other Countries” worksheet"]
["Poland","Poland",null,null,0.64019799999999993,"Greenhouse Gas Protocol Initiative, Emission Factors from Cross-sector Tools, Versions 1.3, August 2012.  “Electricity Other Countries” worksheet"]
["Portugal","Portugal",null,null,0.36823800000000001,"Greenhouse Gas Protocol Initiative, Emission Factors from Cross-sector Tools, Versions 1.3, August 2012.  “Electricity Other Countries” worksheet"]
["Qatar","Qatar",null,null,0.49400889999999997,"Greenhouse Gas Protocol Initiative, Emission Factors from Cross-sector Tools, Versions 1.3, August 2012.  “Electricity Other Countries” worksheet"]
["Republic of Moldova","Republic of Moldova",null,null,0.40009840000000002,"Greenhouse Gas Protocol Initiative, Emission Factors from Cross-sector Tools, Versions 1.3, August 2012.  “Electricity Other Countries” worksheet"]
["Romania","Romania",null,null,0.41435379999999999,"Greenhouse Gas Protocol Initiative, Emission Factors from Cross-sector Tools, Versions 1.3, August 2012.  “Electricity Other Countries” worksheet"]
["Russian Federation","Russian Federation",null,null,0.31740400000000002,"Greenhouse Gas Protocol Initiative, Emission Factors from Cross-sector Tools, Versions 1.3, August 2012.  “Electricity Other Countries” worksheet"]
["Saudi Arabia","Saudi Arabia",null,null,0.75723249999999998,"Greenhouse Gas Protocol Initiative, Emission Factors from Cross-sector Tools, Versions 1.3, August 2012.  “Electricity Other Countries” worksheet"]
["Senegal","Senegal",null,null,0.6144503,"Greenhouse Gas Protocol Initiative, Emission Factors from Cross-sector Tools, Versions 1.3, August 2012.  “Electricity Other Countries” worksheet"]
["Serbia","Serbia",null,null,0.6803266,"Greenhouse Gas Protocol Initiative, Emission Factors from Cross-sector Tools, Versions 1.3, August 2012.  “Electricity Other Countries” worksheet"]
["Singapore","Singapore",null,null,0.51885680000000001,"Greenhouse Gas Protocol Initiative, Emission Factors from Cross-sector Tools, Versions 1.3, August 2012.  “Electricity Other Countries” worksheet"]
["Slovak Republic","Slovak Republic",null,null,0.221716,"Greenhouse Gas Protocol Initiative, Emission Factors from Cross-sector Tools, Versions 1.3, August 2012.  “Electricity Other Countries” worksheet"]
["Slovenia","Slovenia",null,null,0.316025,"Greenhouse Gas Protocol Initiative, Emission Factors from Cross-sector Tools, Versions 1.3, August 2012.  “Electricity Other Countries” worksheet"]
["South Africa","South Africa",null,null,0.92590490000000003,"Greenhouse Gas Protocol Initiative, Emission Factors from Cross-sector Tools, Versions 1.3, August 2012.  “Electricity Other Countries” worksheet"]
["Spain","Spain",null,null,0.29878399999999999,"Greenhouse Gas Protocol Initiative, Emission Factors from Cross-sector Tools, Versions 1.3, August 2012.  “Electricity Other Countries” worksheet"]
["Sri Lanka","Sri Lanka",null,null,0.46010879999999998,"Greenhouse Gas Protocol Initiative, Emission Factors from Cross-sector Tools, Versions 1.3, August 2012.  “Electricity Other Countries” worksheet"]
["Sudan","Sudan",null,null,0.35559580000000002,"Greenhouse Gas Protocol Initiative, Emission Factors from Cross-sector Tools, Versions 1.3, August 2012.  “Electricity Other Countries” worksheet"]
["Sweden","Sweden",null,null,4.3135E-2,"Greenhouse Gas Protocol Initiative, Emission Factors from Cross-sector Tools, Versions 1.3, August 2012.  “Electricity Other Countries” worksheet"]
["Switzerland","Switzerland",null,null,3.9933999999999997E-2,"Greenhouse Gas Protocol Initiative, Emission Factors from Cross-sector Tools, Versions 1.3, August 2012.  “Electricity Other Countries” worksheet"]
["Syrian Arab Republic","Syrian Arab Republic",null,null,0.6408914,"Greenhouse Gas Protocol Initiative, Emission Factors from Cross-sector Tools, Versions 1.3, August 2012.  “Electricity Other Countries” worksheet"]
["Tajikistan","Tajikistan",null,null,2.9226400000000003E-2,"Greenhouse Gas Protocol Initiative, Emission Factors from Cross-sector Tools, Versions 1.3, August 2012.  “Electricity Other Countries” worksheet"]
["Thailand","Thailand",null,null,0.51338090000000003,"Greenhouse Gas Protocol Initiative, Emission Factors from Cross-sector Tools, Versions 1.3, August 2012.  “Electricity Other Countries” worksheet"]
["Togo","Togo",null,null,0.20157140000000001,"Greenhouse Gas Protocol Initiative, Emission Factors from Cross-sector Tools, Versions 1.3, August 2012.  “Electricity Other Countries” worksheet"]
["Trinidad and Tobago","Trinidad and Tobago",null,null,0.71880739999999999,"Greenhouse Gas Protocol Initiative, Emission Factors from Cross-sector Tools, Versions 1.3, August 2012.  “Electricity Other Countries” worksheet"]
["Tunisia","Tunisia",null,null,0.53807950000000004,"Greenhouse Gas Protocol Initiative, Emission Factors from Cross-sector Tools, Versions 1.3, August 2012.  “Electricity Other Countries” worksheet"]
["Turkey","Turkey",null,null,0.47992899999999999,"Greenhouse Gas Protocol Initiative, Emission Factors from Cross-sector Tools, Versions 1.3, August 2012.  “Electricity Other Countries” worksheet"]
["Turkmenistan","Turkmenistan",null,null,0.78945240000000005,"Greenhouse Gas Protocol Initiative, Emission Factors from Cross-sector Tools, Versions 1.3, August 2012.  “Electricity Other Countries” worksheet"]
["Ukraine","Ukraine",null,null,0.37395499999999998,"Greenhouse Gas Protocol Initiative, Emission Factors from Cross-sector Tools, Versions 1.3, August 2012.  “Electricity Other Countries” worksheet"]
["United Arab Emirates","United Arab Emirates",null,null,0.63124550000000001,"Greenhouse Gas Protocol Initiative, Emission Factors from Cross-sector Tools, Versions 1.3, August 2012.  “Electricity Other Countries” worksheet"]
["United Kingdom","United Kingdom",null,null,0.44950099999999998,"Greenhouse Gas Protocol Initiative, Emission Factors from Cross-sector Tools, Versions 1.3, August 2012.  “Electricity Other Countries” worksheet"]
["United Republic of Tanzania","United Republic of Tanzania",null,null,0.28122210000000003,"Greenhouse Gas Protocol Initiative, Emission Factors from Cross-sector Tools, Versions 1.3, August 2012.  “Electricity Other Countries” worksheet"]
["United States","United States",null,null,0.50817000000000001,"Greenhouse Gas Protocol Initiative, Emission Factors from Cross-sector Tools, Versions 1.3, August 2012.  “Electricity Other Countries” worksheet"]
["Uruguay","Uruguay",null,null,0.25317879999999998,"Greenhouse Gas Protocol Initiative, Emission Factors from Cross-sector Tools, Versions 1.3, August 2012.  “Electricity Other Countries” worksheet"]
["Uzbekistan","Uzbekistan",null,null,0.46147590000000005,"Greenhouse Gas Protocol Initiative, Emission Factors from Cross-sector Tools, Versions 1.3, August 2012.  “Electricity Other Countries” worksheet"]
["Venezuela","Venezuela",null,null,0.19859780000000002,"Greenhouse Gas Protocol Initiative, Emission Factors from Cross-sector Tools, Versions 1.3, August 2012.  “Electricity Other Countries” worksheet"]
["Vietnam","Vietnam",null,null,0.38410340000000004,"Greenhouse Gas Protocol Initiative, Emission Factors from Cross-sector Tools, Versions 1.3, August 2012.  “Electricity Other Countries” worksheet"]
["Yemen","Yemen",null,null,0.63045370000000001,"Greenhouse Gas Protocol Initiative, Emission Factors from Cross-sector Tools, Versions 1.3, August 2012.  “Electricity Other Countries” worksheet"]
["Zambia","Zambia",null,null,3.2466000000000001E-3,"Greenhouse Gas Protocol Initiative, Emission Factors from Cross-sector Tools, Versions 1.3, August 2012.  “Electricity Other Countries” worksheet"]
["Zimbabwe","Zimbabwe",null,null,0.61895090000000008,"Greenhouse Gas Protocol Initiative, Emission Factors from Cross-sector Tools, Versions 1.3, August 2012.  “Electricity Other Countries” worksheet"]
[{"$f":"CONCATENATE(B144,C144)","v":"Taiwan"},"Taiwan",null,null,0.61199999999999999,"Greenhouse Gas Protocol Initiative, Emission Factors from Cross-sector Tools, Versions 1.3, August 2012.  “Electricity China and Taiwan” worksheet. [Note: CO2e/kWh]."]
[{"$f":"CONCATENATE(B145,C145)","v":"USAAK"},"USA","AK",1126.2476999999999,{"$f":"D145*0.45359237/1000","v":0.51085736345004895},"eGRID2012 Version 1.0, eGRID2012V1_0_year09_DATA.xls, “ST09” worksheet, State annual CO2 output emission rate (lb/MWh)"]
["USAAL","USA","AL",1040.8062,{"$f":"D146*0.45359237/1000","v":0.47210175096869406},"eGRID2012 Version 1.0, eGRID2012V1_0_year09_DATA.xls, “ST09” worksheet, State annual CO2 output emission rate (lb/MWh)"]
["USAAR","USA","AR",1112.5945999999999,0.50466442146320201,"eGRID2012 Version 1.0, eGRID2012V1_0_year09_DATA.xls, “ST09” worksheet, State annual CO2 output emission rate (lb/MWh)"]
["USAAZ","USA","AZ",1084.6279,0.49197893972912299,"eGRID2012 Version 1.0, eGRID2012V1_0_year09_DATA.xls, “ST09” worksheet, State annual CO2 output emission rate (lb/MWh)"]
["USACA","USA","CA",556.43880000000001,0.25239639405195602,"eGRID2012 Version 1.0, eGRID2012V1_0_year09_DATA.xls, “ST09” worksheet, State annual CO2 output emission rate (lb/MWh)"]
["USACO","USA","CO",1736.7394999999999,0.78777178587761498,"eGRID2012 Version 1.0, eGRID2012V1_0_year09_DATA.xls, “ST09” worksheet, State annual CO2 output emission rate (lb/MWh)"]
["USACT","USA","CT",576.79970000000003,0.26163194293828901,"eGRID2012 Version 1.0, eGRID2012V1_0_year09_DATA.xls, “ST09” worksheet, State annual CO2 output emission rate (lb/MWh)"]
["USADC","USA","DC",2484.6913,1.127037015485381,"eGRID2012 Version 1.0, eGRID2012V1_0_year09_DATA.xls, “ST09” worksheet, State annual CO2 output emission rate (lb/MWh)"]
["USADE","USA","DE",1795.3275000000001,0.81434685565117515,"eGRID2012 Version 1.0, eGRID2012V1_0_year09_DATA.xls, “ST09” worksheet, State annual CO2 output emission rate (lb/MWh)"]
["USAFL","USA","FL",1192.1794,0.54076347951117809,"eGRID2012 Version 1.0, eGRID2012V1_0_year09_DATA.xls, “ST09” worksheet, State annual CO2 output emission rate (lb/MWh)"]
["USAGA","USA","GA",1285.9481000000001,0.58329624637599709,"eGRID2012 Version 1.0, eGRID2012V1_0_year09_DATA.xls, “ST09” worksheet, State annual CO2 output emission rate (lb/MWh)"]
["USAHI","USA","HI",1527.0772999999999,0.69267061168020094,"eGRID2012 Version 1.0, eGRID2012V1_0_year09_DATA.xls, “ST09” worksheet, State annual CO2 output emission rate (lb/MWh)"]
["USAIA","USA","IA",1625.2988,0.73722313465015599,"eGRID2012 Version 1.0, eGRID2012V1_0_year09_DATA.xls, “ST09” worksheet, State annual CO2 output emission rate (lb/MWh)"]
["USAID","USA","ID",119.6862,5.4288747114294003E-2,"eGRID2012 Version 1.0, eGRID2012V1_0_year09_DATA.xls, “ST09” worksheet, State annual CO2 output emission rate (lb/MWh)"]
["USAIL","USA","IL",1067.8362999999999,0.48436239808903098,"eGRID2012 Version 1.0, eGRID2012V1_0_year09_DATA.xls, “ST09” worksheet, State annual CO2 output emission rate (lb/MWh)"]
["USAIN","USA","IN",2033.6314,0.92243968643241803,"eGRID2012 Version 1.0, eGRID2012V1_0_year09_DATA.xls, “ST09” worksheet, State annual CO2 output emission rate (lb/MWh)"]
["USAKS","USA","KS",1673.8714,0.75925529540121806,"eGRID2012 Version 1.0, eGRID2012V1_0_year09_DATA.xls, “ST09” worksheet, State annual CO2 output emission rate (lb/MWh)"]
["USAKY","USA","KY",2045.7462,0.9279348672764941,"eGRID2012 Version 1.0, eGRID2012V1_0_year09_DATA.xls, “ST09” worksheet, State annual CO2 output emission rate (lb/MWh)"]
["USALA","USA","LA",1128.269,0.51177420970753007,"eGRID2012 Version 1.0, eGRID2012V1_0_year09_DATA.xls, “ST09” worksheet, State annual CO2 output emission rate (lb/MWh)"]
["USAMA","USA","MA",1113.8030000000001,0.50521254248311009,"eGRID2012 Version 1.0, eGRID2012V1_0_year09_DATA.xls, “ST09” worksheet, State annual CO2 output emission rate (lb/MWh)"]
["USAMD","USA","MD",1231.9697000000001,0.55881205599118899,"eGRID2012 Version 1.0, eGRID2012V1_0_year09_DATA.xls, “ST09” worksheet, State annual CO2 output emission rate (lb/MWh)"]
["USAME","USA","ME",500.25349999999997,0.226911170665795,"eGRID2012 Version 1.0, eGRID2012V1_0_year09_DATA.xls, “ST09” worksheet, State annual CO2 output emission rate (lb/MWh)"]
["USAMI","USA","MI",1524.1292000000001,0.69133337601420408,"eGRID2012 Version 1.0, eGRID2012V1_0_year09_DATA.xls, “ST09” worksheet, State annual CO2 output emission rate (lb/MWh)"]
["USAMN","USA","MN",1396.8335999999999,0.63359306311963204,"eGRID2012 Version 1.0, eGRID2012V1_0_year09_DATA.xls, “ST09” worksheet, State annual CO2 output emission rate (lb/MWh)"]
["USAMO","USA","MO",1807.5836999999999,0.81990617445636893,"eGRID2012 Version 1.0, eGRID2012V1_0_year09_DATA.xls, “ST09” worksheet, State annual CO2 output emission rate (lb/MWh)"]
["USAMS","USA","MS",1102.6746000000001,0.50016478515280205,"eGRID2012 Version 1.0, eGRID2012V1_0_year09_DATA.xls, “ST09” worksheet, State annual CO2 output emission rate (lb/MWh)"]
["USAMT","USA","MT",1438.6678999999999,0.65256878240392302,"eGRID2012 Version 1.0, eGRID2012V1_0_year09_DATA.xls, “ST09” worksheet, State annual CO2 output emission rate (lb/MWh)"]
["USANC","USA","NC",1156.5443,0.52459967004699104,"eGRID2012 Version 1.0, eGRID2012V1_0_year09_DATA.xls, “ST09” worksheet, State annual CO2 output emission rate (lb/MWh)"]
["USAND","USA","ND",2057.7381999999998,0.93337434697753396,"eGRID2012 Version 1.0, eGRID2012V1_0_year09_DATA.xls, “ST09” worksheet, State annual CO2 output emission rate (lb/MWh)"]
["USANE","USA","NE",1597.6723,0.72469196504035094,"eGRID2012 Version 1.0, eGRID2012V1_0_year09_DATA.xls, “ST09” worksheet, State annual CO2 output emission rate (lb/MWh)"]
["USANH","USA","NH",600.70579999999995,0.272475567494746,"eGRID2012 Version 1.0, eGRID2012V1_0_year09_DATA.xls, “ST09” worksheet, State annual CO2 output emission rate (lb/MWh)"]
["USANJ","USA","NJ",549.60760000000005,0.24929781385401201,"eGRID2012 Version 1.0, eGRID2012V1_0_year09_DATA.xls, “ST09” worksheet, State annual CO2 output emission rate (lb/MWh)"]
["USANM","USA","NM",1821.2629999999999,0.82611100056330999,"eGRID2012 Version 1.0, eGRID2012V1_0_year09_DATA.xls, “ST09” worksheet, State annual CO2 output emission rate (lb/MWh)"]
["USANV","USA","NV",1060.9213999999999,0.48122585220971803,"eGRID2012 Version 1.0, eGRID2012V1_0_year09_DATA.xls, “ST09” worksheet, State annual CO2 output emission rate (lb/MWh)"]
["USANY","USA","NY",582.85310000000004,0.26437771899084705,"eGRID2012 Version 1.0, eGRID2012V1_0_year09_DATA.xls, “ST09” worksheet, State annual CO2 output emission rate (lb/MWh)"]
["USAOH","USA","OH",1780.8858,0.807796210721346,"eGRID2012 Version 1.0, eGRID2012V1_0_year09_DATA.xls, “ST09” worksheet, State annual CO2 output emission rate (lb/MWh)"]
["USAOK","USA","OK",1494.9867999999999,0.67811460573071602,"eGRID2012 Version 1.0, eGRID2012V1_0_year09_DATA.xls, “ST09” worksheet, State annual CO2 output emission rate (lb/MWh)"]
["USAOR","USA","OR",363.50689999999997,0.16488395628235297,"eGRID2012 Version 1.0, eGRID2012V1_0_year09_DATA.xls, “ST09” worksheet, State annual CO2 output emission rate (lb/MWh)"]
["USAPA","USA","PA",1140.3109999999999,0.51723636902706993,"eGRID2012 Version 1.0, eGRID2012V1_0_year09_DATA.xls, “ST09” worksheet, State annual CO2 output emission rate (lb/MWh)"]
["USARI","USA","RI",895.49779999999998,0.40619096943178601,"eGRID2012 Version 1.0, eGRID2012V1_0_year09_DATA.xls, “ST09” worksheet, State annual CO2 output emission rate (lb/MWh)"]
["USASC","USA","SC",824.62289999999996,0.37404265556727301,"eGRID2012 Version 1.0, eGRID2012V1_0_year09_DATA.xls, “ST09” worksheet, State annual CO2 output emission rate (lb/MWh)"]
["USASD","USA","SD",914.34090000000003,0.41473805581893303,"eGRID2012 Version 1.0, eGRID2012V1_0_year09_DATA.xls, “ST09” worksheet, State annual CO2 output emission rate (lb/MWh)"]
["USATN","USA","TN",1071.5353,0.48604023626566101,"eGRID2012 Version 1.0, eGRID2012V1_0_year09_DATA.xls, “ST09” worksheet, State annual CO2 output emission rate (lb/MWh)"]
["USATX","USA","TX",1243.1931,0.56390290459664694,"eGRID2012 Version 1.0, eGRID2012V1_0_year09_DATA.xls, “ST09” worksheet, State annual CO2 output emission rate (lb/MWh)"]
["USAUT","USA","UT",1854.4949999999999,0.84118478220314996,"eGRID2012 Version 1.0, eGRID2012V1_0_year09_DATA.xls, “ST09” worksheet, State annual CO2 output emission rate (lb/MWh)"]
["USAVA","USA","VA",994.39649999999995,0.45105066515470499,"eGRID2012 Version 1.0, eGRID2012V1_0_year09_DATA.xls, “ST09” worksheet, State annual CO2 output emission rate (lb/MWh)"]
["USAVT","USA","VT",2.1716000000000002,9.8502119069200015E-4,"eGRID2012 Version 1.0, eGRID2012V1_0_year09_DATA.xls, “ST09” worksheet, State annual CO2 output emission rate (lb/MWh)"]
["USAWA","USA","WA",286.48129999999998,0.12994573182768099,"eGRID2012 Version 1.0, eGRID2012V1_0_year09_DATA.xls, “ST09” worksheet, State annual CO2 output emission rate (lb/MWh)"]
["USAWI","USA","WI",1514.0902000000001,0.68677976221177406,"eGRID2012 Version 1.0, eGRID2012V1_0_year09_DATA.xls, “ST09” worksheet, State annual CO2 output emission rate (lb/MWh)"]
["USAWV","USA","WV",2010.5044,0.91194945569142805,"eGRID2012 Version 1.0, eGRID2012V1_0_year09_DATA.xls, “ST09” worksheet, State annual CO2 output emission rate (lb/MWh)"]
["USAWY","USA","WY",2116.3624,0.95996583679488801,"eGRID2012 Version 1.0, eGRID2012V1_0_year09_DATA.xls, “ST09” worksheet, State annual CO2 output emission rate (lb/MWh)"]
["USAPuerto Rico","USA","Puerto Rico",1891.57,0.85800171932090008,"The Climate Registry's 2013Default Emission Factors. Table 14.1 US Emission Factors by eGRIDSubregion. \"US Territories (not an eGRID Region)\" from Department of Energy Guidance on Voluntary Reporting of Greenhouse Gases, Form EIA-1605 (2007), Appendix F, "]
["CanadaAlberta","Canada","Alberta",null,0.73399999999999999,"National Inventory Report, 1990-2011: Greenhouse Gas Sources and Sinks in Canada Part 3, Table A13-10"]
["CanadaBritish Columbia","Canada","British Columbia",null,1.11E-2,"National Inventory Report, 1990-2011: Greenhouse Gas Sources and Sinks in Canada Part 3, Table A13-11"]
["CanadaManitoba","Canada","Manitoba",null,3.2799999999999999E-3,"National Inventory Report, 1990-2011: Greenhouse Gas Sources and Sinks in Canada Part 3, Table A13-8"]
["CanadaLabrador","Canada","Labrador",null,2.0199999999999999E-2,"National Inventory Report, 1990-2011: Greenhouse Gas Sources and Sinks in Canada Part 3, Table A13-2"]
["CanadaNew Brunswick","Canada","New Brunswick",null,0.44,"National Inventory Report, 1990-2011: Greenhouse Gas Sources and Sinks in Canada Part 3, Table A13-5"]
["CanadaNewfoundland","Canada","Newfoundland",null,2.0199999999999999E-2,"National Inventory Report, 1990-2011: Greenhouse Gas Sources and Sinks in Canada Part 3, Table A13-2"]
[{"$f":"CONCATENATE(B203,C203)","v":"CanadaNova Scotia"},"Canada","Nova Scotia",null,0.71399999999999997,"National Inventory Report, 1990-2011: Greenhouse Gas Sources and Sinks in Canada Part 3, Table A13-4"]
["CanadaOntario","Canada","Ontario",null,9.7000000000000003E-2,"National Inventory Report, 1990-2011: Greenhouse Gas Sources and Sinks in Canada Part 3, Table A13-7"]
["CanadaPrince Edward Island","Canada","Prince Edward Island",null,1.9E-3,"National Inventory Report, 1990-2011: Greenhouse Gas Sources and Sinks in Canada Part 3, Table A13-3"]
["CanadaQuebec","Canada","Quebec",null,1.64E-3,"National Inventory Report, 1990-2011: Greenhouse Gas Sources and Sinks in Canada Part 3, Table A13-6"]
["CanadaSaskatchewan","Canada","Saskatchewan",null,0.73899999999999999,"National Inventory Report, 1990-2011: Greenhouse Gas Sources and Sinks in Canada Part 3, Table A13-9"]
["CanadaYukon","Canada","Yukon",null,6.2E-2,"National Inventory Report, 1990-2011: Greenhouse Gas Sources and Sinks in Canada Part 3, Table A13-12"]
["CanadaNorthwest Territories","Canada","Northwest Territories",null,0.30599999999999999,"National Inventory Report, 1990-2011: Greenhouse Gas Sources and Sinks in Canada Part 3, Table A13-13"]
["CanadaNunavut","Canada","Nunavut",null,0.30599999999999999,"National Inventory Report, 1990-2011: Greenhouse Gas Sources and Sinks in Canada Part 3, Table A13-13"]
["AustraliaNew South Wales","Australia","New South Wales",null,0.88,"Australian National Greenhouse Accounts (NGA) Factors July 2012, Table 5"]
["AustraliaAustralian Capital Teritory","Australia","Australian Capital Teritory",null,0.88,"Australian National Greenhouse Accounts (NGA) Factors July 2012, Table 5"]
["AustraliaVictoria","Australia","Victoria",null,1.19,"Australian National Greenhouse Accounts (NGA) Factors July 2012, Table 5"]
["AustraliaQueensland","Australia","Queensland",null,0.86,"Australian National Greenhouse Accounts (NGA) Factors July 2012, Table 5"]
["AustraliaSouth Australia","Australia","South Australia",null,0.65,"Australian National Greenhouse Accounts (NGA) Factors July 2012, Table 5"]
["AustraliaWestern Australia","Australia","Western Australia",null,0.82,"Australian National Greenhouse Accounts (NGA) Factors July 2012, Table 5"]
["AustraliaTasmaian","Australia","Tasmaian",null,0.26,"Australian National Greenhouse Accounts (NGA) Factors July 2012, Table 5"]
["AustraliaNorthern Territory","Australia","Northern Territory",null,0.71,"Australian National Greenhouse Accounts (NGA) Factors July 2012, Table 5"]

{"sheet":"FuelEFs","index":13,"n_rows":24,"n_cols":5,"rows_kept":24,"cut":false,"hidden":true,"merged":[[23,2,23,3]]}
["Fuel","EF","Units","TCR Fuel Name","Reference"]
["Natural gas",5.3019999999999998E-2,"kg CO2/cubic foot","Natural gas","The Climate Registry's 2013 Default Emission Factors, Table 12.1 U.S. Default Factors for Calculating CO2 Emissions from Fossil Fuel and Biomass Combustion "]
["Fuel Oil",10.206479999999999,"kg CO2/gallon","Distilate Fuel Oil No. 2","The Climate Registry's 2013 Default Emission Factors, Table 12.1 U.S. Default Factors for Calculating CO2 Emissions from Fossil Fuel and Biomass Combustion (Residual Fuel Oil No.2) "]
["Kerosene ",10.152000000000001,"kg CO2/gallon","Kerosene ","The Climate Registry's 2013 Default Emission Factors, Table 12.1 U.S. Default Factors for Calculating CO2 Emissions from Fossil Fuel and Biomass Combustion "]
["Propane",5.5928599999999999,"kg CO2/gallon","Propane","The Climate Registry's 2013 Default Emission Factors, Table 13.1 U.S. Default Factors for Transport Fuels "]
["Gasoline ",8.7799999999999994,"kg CO2/gallon","Gasoline ","The Climate Registry's 2013 Default Emission Factors, Table 13.1 U.S. Default Factors for Transport Fuels "]
["Diesel Fuel ",10.210000000000001,"kg CO2/gallon","Diesel Fuel ","The Climate Registry's 2013 Default Emission Factors, Table 13.1 U.S. Default Factors for Transport Fuels "]
["Aviation Gasoline",8.31,"kg CO2/gallon","Aviation Gasoline","The Climate Registry's 2013 Default Emission Factors, Table 13.1 U.S. Default Factors for Transport Fuels "]
["Jet Fuel",9.75,"kg CO2/gallon","Jet Fuel (Jet A or A-1)","The Climate Registry's 2013 Default Emission Factors, Table 13.1 U.S. Default Factors for Transport Fuels "]
["Kerosene ",10.15,"kg CO2/gallon","Kerosene ","The Climate Registry's 2013 Default Emission Factors, Table 13.1 U.S. Default Factors for Transport Fuels "]
["RFO (Ships)",11.27,"kg CO2/gallon","Residual Fuel Oil (#5,6)","The Climate Registry's 2013 Default Emission Factors, Table 13.1 U.S. Default Factors for Transport Fuels (RFO #6)"]
["Biodiesel (B100)",9.4499999999999993,"kg CO2/gallon","Biodiesel (B100)*","The Climate Registry's 2013 Default Emission Factors, Table 13.1 U.S. Default Factors for Transport Fuels "]
["B5",{"$f":"0.05*B12+0.95*B7","v":10.172000000000001},"kg CO2/gallon",null,"5% x Biodiesel + 95% x Diesel"]
["B20",{"$f":"0.2*B12+0.8*B7","v":10.058000000000002},"kg CO2/gallon",null,"20% x Biodiesel + 80% x Diesel"]
["B40",{"$f":"0.4*B12+0.6*B7","v":9.9060000000000006},"kg CO2/gallon",null,"40% x Biodiesel + 60% x Diesel"]
["B99",{"$f":"0.99*B12+0.01*B7","v":9.4575999999999993},"kg CO2/gallon",null,"99% x Biodiesel + 1% x Diesel"]
["Ethanol (E100)",5.75,"kg CO2/gallon","Ethanol (E100)*","The Climate Registry's 2013 Default Emission Factors, Table 13.1 U.S. Default Factors for Transport Fuels "]
["E85",{"$f":"0.85*B17+0.15*B6","v":6.2045000000000003},"kg CO2/gallon",null,"85%x Ethanol +15% gasoline"]
["LNG",4.46,"kg CO2/gallon","Liquefied Natural Gas (LNG)*","The Climate Registry's 2013 Default Emission Factors, Table 13.1 U.S. Default Factors for Transport Fuels "]
["LPG",5.7896902380952371,"kg CO2/gallon","Liquefied Petroleum Gas (LPG)*","The Climate Registry's 2013 Default Emission Factors, Table 13.1 U.S. Default Factors for Transport Fuels "]
["CNG",{"$f":"B2*134.71","v":7.1423242},"kg CO2/gallon equivalent* (converted from kg CO2/std cubic feet)","Compressed Natural Gas (CNG)","The Climate Registry's 2013 Default Emission Factors, Table 13.1 U.S. Default Factors for Transport Fuels "]
[]
[]
[null,null,"*The National Institute of Standards and Technology reports the mass of one GGE as 5.660 pounds of natural gas .  The density of natural gas is 23.8 cubic feet per pound according to the American Petroleum Institute .  Thus, a GGE of natural gas is equivalent to 134.71 cubic feet.  "]

{"sheet":"CBECs","index":14,"n_rows":18,"n_cols":6,"rows_kept":18,"cut":false,"hidden":true,"merged":[]}
[null,"Electricity","Natural Gas","Fuel Oil"]
["Principal Building Activity","per Square Foot (kWh)","per Square Foot \n(cubic feet)","per \nSquare Foot\n(gallons)"]
["Education ....................",11,36.9,0.18,null,"http://www.eia.doe.gov/emeu/cbecs/cbecs2003/detailed_tables_2003/detailed_tables_2003.html#enduse03"]
["Food Sales ...................",49.4,50.2,"Q"]
["Food Service .................",38.4,141.19999999999999,"Q"]
["Health Care ..................",22.9,92.5,0.04]
["  Inpatient ..................",27.5,109.8,0.04]
["  Outpatient .................",16.100000000000001,50.2,"Q"]
["Lodging ......................",13.5,48.9,0.12]
["Retail (Other Than Mall)......",14.3,30.9,"Q"]
["Office .......................",17.3,31.8,0.03]
["Public Assembly ..............",12.5,36.4,0.22]
["Public Order and Safety ......",15.3,43.7,"Q"]
["Religious Worship ............",4.9000000000000004,30.3,0.28999999999999998]
["Service ......................",11,54.1,"Q"]
["Warehouse and Storage ........",7.6,23.4,0.05]
["Other ........................",22.5,67.599999999999994,"Q"]
["Vacant .......................",2.4,23,"Q"]

{"sheet":"Cost","index":15,"n_rows":19,"n_cols":6,"rows_kept":19,"cut":false,"hidden":true,"merged":[]}
["Source","$ per standard unit","Standard Unit","Year","Reference"]
["Electricity",0.1188,"kWh",2012,"http://www.eia.doe.gov/emeu/steo/pub/"]
["Natural Gas",1.0659999999999999E-2,"cubic foot",2012,"http://www.eia.doe.gov/emeu/steo/pub/"]
["Fuel Oil",3.76,"gallon",2012,"Heating Oil from http://www.eia.doe.gov/emeu/steo/pub/"]
["Gasoline",3.63,"gallon",2012,"http://www.eia.doe.gov/emeu/steo/pub/"]
["Diesel",2.46,"gallon",2012,"http://www.eia.doe.gov/emeu/steo/pub/"]
["Biodiesel (B100)",{"$f":"AVERAGE(4.9,5.04)","v":4.9700000000000006},"gallon",2013,"Average of Min and Max Values from http://www.ams.usda.gov/mnreports/lswagenergy.pdf "]
["B5",{"$f":"B7","v":4.9700000000000006},"gallon",null,"assume same as B100"]
["B20",{"$f":"B8","v":4.9700000000000006},"gallon",null,"assume same as B100"]
["B40",4.9700000000000006,"gallon",null,"assume same as B100"]
["B99",4.9700000000000006,"gallon",null,"assume same as B100"]
["LPG",{"$f":"AVERAGE(4.29,1.93)","v":3.11},"gallon",2013,"Average Cost in Los Angeles from http://www.altfuelprices.com/"]
["CNG",{"$f":"AVERAGE(2.9,2.99)","v":2.9450000000000003},"gallon",2013,"Average Cost in Los Angeles from http://www.altfuelprices.com/"]
["LNG",{"$f":"AVERAGE(2.2,2.19)","v":2.1950000000000003},"gallon",2013,"Average Cost in Los Angeles from http://www.altfuelprices.com/"]
["Kerosene",3.843,"gallon",2012,"U.S. Price excluding taxes from http://www.eia.gov/dnav/pet/pet_sum_mkt_a_EPPK_PTG_dpgal_a.htm"]
["Residual Fuel Oil",1.7290000000000001,"gallon",2010,"Average U.S. Sales to End Users excluding taxes from http://www.eia.gov/dnav/pet/pet_pri_resid_dcu_nus_a.htm"]
["Propane",2.484,"gallon",2013,"http://www.eia.gov/petroleum/heatingoilpropane/","Note: Steo no longer collects propane data. This is the only source for propane data, though only ~24 states collect data"]
["E85",{"$f":"AVERAGE(3.69,3.49)","v":3.59},"gallon",2013,"Average Cost in Los Angeles from http://www.altfuelprices.com/"]
["Ethanol",{"$f":"AVERAGE(2.55,2.75)","v":2.65},"gallon",2013,"Average of Min and Max Values from http://www.ams.usda.gov/mnreports/lswagenergy.pdf "]

{"sheet":"MPG","index":16,"n_rows":13,"n_cols":4,"rows_kept":13,"cut":false,"hidden":true,"merged":[]}
["VehicleType","Fuel Efficiency (mpg)","US DOT classification","Reference Classification"]
["Cars",23.6,"Passenger Cars","Cars- Ref 1, Page 2"]
["Motorcycles",56.2,"Motorcycles","Motorcycles- Ref 2"]
["Buses",6,"Buses","Buses- Ref 3, Page 5"]
["Vans, Pickups, SUVs",17.5,"Other 2-Axel 4 Tire vehicles","Light Truck 2-Axel 4 Tire- Ref 1, Page 2"]
["Trucks (<18 wheel)",7.3,"Single-Unit 2-axles 6-tire or more trucks","Class 3-8 single-unit trucks, 2011- Ref 1, Page 131"]
["18 Wheelers",5.8,"Combination Trucks","Class 7-8 combination trucks, 2011- Ref 1, Page 131"]
["All Vehicles",23.8,"All Motor Vehicles","http://www.epa.gov/otaq/fetrends.htm"]
[]
["Reference: "]
["1-Transportation Energy Data Book: Edition 32 can be found online at: cta.ornl.gov/data"]
["2-US Department of Transportation, Federal Highway Administration Office of Highway Policy Information, Highway Statistics 2007,  December 2008, Table VM-1, Annual Vehicle Distance Traveled in Miles and Related Data-2007, Average miles traveled per gallon of fuel consumed accessed from http://www.fhwa.dot.gov/policyinformation/statistics/2007/ "]
["3-John Dunham & Associates (2010). Motorcoach Census 2011. A Benchmarking Study of the Size and Activity of the Motorcoach Industry in the United States and Canada in 2010. American Bus Association Foundation. Retrieved September 5, 2013 from http://www.buses.org/files/Foundation/Final_Motorcoach_Census_2011_7-3-2012.pdf."]

{"sheet":"AirTravel","index":17,"n_rows":20,"n_cols":16,"rows_kept":20,"cut":false,"hidden":true,"merged":[[20,12,21,12],[10,0,10,6]]}
["Length Classification","EF (kg CO2/passenger mile)","Max Distance (miles)","Total kg CO2 pkm*","DEFRA Classification",null,"Plane Type","Fuel Type","Gallons per Hour","miles per gallon",null,null,"Plane Type","Model","Gallons per Hour","Reference"]
["Short",{"$f":"D2*$D$7","v":0.28966856244480005},{"$f":"463/D7","v":287.69486200588562},{"$f":"109%*0.16513","v":0.1799917},"Domestic Average",null,"Chartered Commercial Jet","jet fuel",{"$f":"ROUND(SUMIF(M:M, G2,O:O )/COUNTIF(M:M, G2), -1)","v":950},{"$f":"ROUND(1/2.65,1)","v":0.4},"Climate Leaders Table 4: Fuel Economy Values by Vehicle Type",null,"Chartered Commercial Jet","737-800",850,"http://www.seattlepi.com/business/368286_air25.html"]
["Medium",{"$f":"D3*$D$7","v":0.16540209987840002},{"$f":"1108/D7","v":688.47928099896603},{"$f":"1.09*0.09429","v":0.10277610000000001},"Short-Haul International Average",null,"Large Private Jet","jet fuel",{"$f":"ROUND(SUMIF(M:M, G3,O:O )/COUNTIF(M:M, G3), -1)","v":440},{"$f":"ROUND(1.3, 1)","v":1.3},"http://www.ehow.com/about_5665316_private-suv-jet-fuel-cost.html",null,"Chartered Commercial Jet","MD-80",1050,"http://www.seattlepi.com/business/368286_air25.html"]
["Long",{"$f":"D4*$D$7","v":0.18925901533440004},null,{"$f":"1.09*0.10789","v":0.11760010000000001},"Long-Haul International Average",null,"Small Private Jet","jet fuel",{"$f":"ROUND(SUMIF(M:M, G4,O:O )/COUNTIF(M:M, G4), -1)","v":220},4,"http://www.ehow.com/about_5665316_private-suv-jet-fuel-cost.html",10,"Small Private Jet","Citation Excel",250,"Joe Bellas, Universal carbon calculator factors based on equipment manual"]
["Average",{"$f":"AVERAGE(B2:B4)","v":0.21477655921920003},null,null,null,null,"Helicopter","aviation gasoline",{"$f":"ROUND(SUMIF(M:M, G5,O:O )/COUNTIF(M:M, G5), -1)","v":50},{"$f":"ROUND(1.65, 1)","v":1.7},"http://en.wikipedia.org/wiki/Fuel_efficiency_in_transportation",10,"Small Private Jet","Cessna 50XL Citation",166,"Joe Bellas, Universal carbon calculator factors based on equipment manual"]
[null,null,null,null,null,null,null,null,null,null,null,null,"Small Private Jet","ACG 39 / Lear 45",184,"Joe Bellas, Universal carbon calculator factors based on equipment manual"]
[null,null,null,1.6093440000000001,"km = 1 mile",null,null,null,null,null,null,null,"Small Private Jet","Metro III",80,"Joe Bellas, Universal carbon calculator factors based on equipment manual"]
[null,null,null,null,null,null,null,null,null,null,null,null,"Helicopter","Eurocopter 350 B-2 ",45,"Joe Bellas, Universal carbon calculator factors based on equipment manual"]
[null,null,null,"*Includes km uplift factor of 109%",null,null,null,null,null,null,null,16,"Large Private Jet","G5",370,"Joe Bellas, Universal carbon calculator factors based on equipment manual"]
["Reference:",null,null,null,null,null,null,null,null,null,null,16,"Large Private Jet","G5",510,"Joe Bellas, Universal carbon calculator factors based on equipment manual"]
["Department for Environment, Food and Rural Affairs (2012). 2012 Guidelines to Defra / DECC’s GHG Conversion Factors for Company Reporting. Version 1.0 (updated May 28). Annex 6 Passenger Transport, Table 6l: Air Passenger Transport Conversion Factors ",null,null,null,null,null,null,null,null,null,null,null,"Small Private Jet","Charter - C750",316,"Joe Bellas, Universal carbon calculator factors based on equipment manual"]
[null,null,null,null,null,null,null,null,null,null,null,null,"Small Private Jet","Charter - Falcon 2000",254,"Joe Bellas, Universal carbon calculator factors based on equipment manual"]
[null,null,null,null,null,null,null,null,null,null,null,null,"Helicopter","Helicopter - A Star 350",45,"Joe Bellas, Universal carbon calculator factors based on equipment manual"]
["2010 Emission Factor","2012 Emission Factor",null,null,null,null,null,null,null,null,null,null,"Large Private Jet","Charter - G IV",450,"Joe Bellas, Universal carbon calculator factors based on equipment manual"]
["(kg CO2e per passenger mile)","(kg CO2e per passenger mile)","% difference",null,null,null,"Plane Type","Number of Passengers",null,null,null,null,"Helicopter","Helicopter - A Star 350",47,"Joe Bellas, Universal carbon calculator factors based on equipment manual"]
[0.30399999999999999,{"$f":"109%*0.16685*D7","v":0.29268576057600004},{"$f":"(B16-A16)/A16","v":-3.7217892842105096E-2},null,null,null,"Chartered Commercial Jet",">20",null,null,null,null,"Helicopter","Helicopter - Twin Star",55,"Joe Bellas, Universal carbon calculator factors based on equipment manual"]
[0.17199999999999999,{"$f":"1.09*0.09522*D7","v":0.16703349189120001},{"$f":"(B17-A17)/A17","v":-2.8875047144185918E-2},null,null,null,"Large Private Jet","14-20",null,null,null,null,"Helicopter","Helicopter–EuroAS350BA",43,"Joe Bellas, Universal carbon calculator factors based on equipment manual"]
[0.2,{"$f":"1.09*0.10896*D7","v":0.19113599324160002},-4.4320033791999947E-2,null,null,null,"Small Private Jet","5-13",null,null,null,null,"Small Private Jet","Citation 550",350,"Joe Bellas, Universal carbon calculator factors based on equipment manual"]
[null,null,null,null,null,null,null,null,null,null,null,null,"Helicopter","Helecoptor – Bell B212",50,"Joe Bellas, Universal carbon calculator factors based on equipment manual"]
[null,null,null,null,null,null,null,null,null,null,null,null,"Small Private Jet","Cessna Citation CJ2",140,"http://www.jetadvisors.com/aircraft-specs/Description-CessnaCitationCJ2-SmallCabinLightJets.htm"]

{"sheet":"HotelFactors","index":18,"n_rows":20,"n_cols":8,"rows_kept":20,"cut":false,"hidden":true,"merged":[]}
["Room Type","Square Footage","kWh/square foot/yr","kWh/yr","KBtu/sq foot/yr","natural gas/yr","Year"]
["Economy Hotel",535,10.31,{"$f":"B2*C2","v":5515.85},42.45,{"$f":"E2*Lookups!$E$4/100*B2","v":233466.51000000004},2005,"hotel_casino_analysis.pdf, Table 16 & 17"]
["Midscale Hotel",656,16.57,{"$f":"B3*C3","v":10869.92},54.04,{"$f":"E3*Lookups!$E$4/100*B3","v":364428.46720000001},2005,"hotel_casino_analysis.pdf, Table 16 & 18"]
["Upscale Hotel",842,14.96,{"$f":"B4*C4","v":12596.320000000002},40.57,{"$f":"E4*Lookups!$E$4/100*B4","v":351164.18319999997},2005,"hotel_casino_analysis.pdf, Table 16 & 19"]
["Luxury Hotel",905,18.18,{"$f":"B5*C5","v":16452.900000000001},49.01,{"$f":"E5*Lookups!$E$4/100*B5","v":455959.63399999996},2005,"hotel_casino_analysis.pdf, Table 16 & 20"]
["Apartment/Condo","Apartments in 5 or More Unit Buildings",null,11320,null,null,2009,"Residential Energy Consumption Survey (RECS) Table CE2.1  Household Site Fuel Consumption in the U.S., Totals and Averages, 2009 (Released January 2013)"]
["Average House","Total US",null,6376,null,null,2009,"Residential Energy Consumption Survey (RECS) Table CE2.1  Household Site Fuel Consumption in the U.S., Totals and Averages, 2009 (Released January 2013)"]
["Large House",">4000",null,17498,null,null,2009,"Residential Energy Consumption Survey (RECS) Table CE2.1  Household Site Fuel Consumption in the U.S., Totals and Averages, 2009 (Released January 2013)"]
[]
[]
["Housing Type","Casino Analysis","Examples"]
["Economy Hotel","Economy and Budget","Motel 6, Red Roof, Days Inn"]
["Midscale Hotel","Midscale w/ Food and Beverage","Holiday Inn, Ramada, Best Western"]
["Upscale Hotel","Upscale","Marriot, Hilton"]
["Luxury Hotel","Upper Upscale","Four Seasons, Ritz Carlton"]
["Apartment/Condo",null,"<1000 square feet"]
["Average House",null,"1000 - 4000 square feet"]
["Large House",null,">4000 Square feet"]
[]
[null,null,null,null,null,"Room/House Type"]

{"sheet":"Plywood tracking","index":19,"n_rows":13,"n_cols":11,"rows_kept":13,"cut":false,"hidden":true,"merged":[[10,7,10,9],[5,0,5,1],[4,2,4,3],[5,2,5,3],[0,0,0,10],[1,0,1,10],[8,7,8,9],[6,0,6,2],[3,2,3,3]]}
["Plywood Tracking Worksheet"]
[]
[]
["Production Name",null,null,null,null,null,null,null,"Currently there are only 3 factories in the world that provide 4'x10'x1/4\" lauan/meranti"]
["Construction Coordinator",null,null,null,null,null,null,null,"Factory","Location","Brand Name"]
["Production Location",null,null,null,null,null,null,null,"Cymao","Malaysia","Invowood"]
["Did you purchase FSC Certified lauan/meranti? ",null,null,null,null,null,null,null,"Kayu Lapis Indonesia ","Indonesia","Fuji or Mt. Fuji"]
["If not, why not?",null,null,null,null,null,null,null,"PT Sumalindo Lestari Jaya","Indonesia","Sumalindo or SLJ"]
[]
["Did you purchase alternatives to lauan/meranti?"]
["If yes, please track below"]
["Date of Purchase","PO#","Wood Species or Alternative ","Type and Size","Certification   (if any)","Primed or Not Primed","Volume / # of Units","Cost per Unit ","Direct Supplier Name","Supplier Location","For meranti/lauan, provide factory of origin and/or brand name - if not available, provide country of origin"]
["EX:  3/1/2013",456,"Lauan","4'x10'x1/4\"","FSC","Primed","1 lift / 115 panels","$25/sheet","Topanga Lumber","Los Angeles, CA","PT Sumalindo Lestari Jaya / Sumalindo"]

{"sheet":"Equivalents","index":20,"n_rows":29,"n_cols":7,"rows_kept":29,"cut":false,"hidden":true,"merged":[]}
[null,"http://www.epa.gov/cleanenergy/energy-resources/calculator.html"]
[null,null,null,null,null,null,"Homes per Year"]
[null," 1 MT CO2 Emissions is equivalent to*:"]
[]
[null,"   Annual energy use from"]
[null,{"$f":"1/19.43","v":5.1466803911477101E-2},"homes for one year"]
[]
[null,"   Annual emissions from"]
[null,{"$f":"1/4.8","v":0.20833333333333334},"passenger vehicles"]
[]
[null,{"$f":"1/0.039","v":25.641025641025642},"tree seedlings grown for 10 years"]
[]
[null,{"$f":"1/0.00892","v":112.10762331838563},"gallons of gasoline consumed"]
[]
[]
[]
[null,null,null,null,null,null,"Passenger Vehicles"]
[]
[]
[]
[]
[]
[]
[null,null,null,null,null,null,"Tree Seedlings"]
[]
[]
[]
[]
[null,null,null,null,null,null,"Gallons of Gasoline Consumed"]